Workbook

Sheet Menu
C4: Cirkelbeweging | K4: vs 30042021
C7: Menu
C8: 1. | D8: Auto in de bocht
D9: - Vliegt de auto uit de bocht?
D10: - De straal, snelheid, massa en wrijvings coëfficiënt kunnen ingesteld worden.
D11: - De baan kan zichtbaar gemaakt worden.
D12: - De krachten op de auto kunnen zichtbaar gemaakt worden.
C14: 2. | D14: Looping
D15: - Een bakje met water wordt rondgeslingerd in een vertikaal vlak.
D16: - Als de snelheid van de emmer te klein is valt het water er uit.
D17: - De baan van het water kan zichtbaar gemaakt worden.
D18: - De krachten op het water kunnen zichtbaar gemaakt worden.
C20: 3. | D20: Satelliet
D21: Geostationnaire satelliet en een willekeurige satelliet.
D22: Massa, hoogte en horizontale beginsnelheid instelbaar.
D23: Gravitatiekracht kan weergegeven worden.
D25: https://agtijmensen.nl

Sheet Auto in de bocht
B1: Een auto rijdt een rotonde op. | P1: 0 | Q1: 0 | R1: : | S1: 3 | T1: 0.234375 | U1: =MIN((P1*3600+Q1*60+S1+T1)*I9,W1) -> 12.64911518 | V1: (versneld) | W1: =IF(AB9>120,AB20+AB15*1/4,1000) -> 12.64911518 | X1: = tekentijd | AA1: R = rotonde | AB1: =C3 -> 51
B3: Straal | C3: =E3 -> 51 | D3: m | E3: 51 | H3: Baan zien? | I3: =IF(AI28=1,"Ja","Nee") -> Ja | U3: =U1*V22 -> 63.24557591 | V3: onvertraagd | AA3: v auto | AB3: =C5 -> 25
B5: Snelheid | C5: =E5 -> 25 | D5: m/s | E5: 25 | H5: Krachten op de auto zien? (Fstuw, Fw (lucht en rol), Fw,dwars) | I5: =IF(V23=1,"Ja","Nee") -> Ja | AA5: g= | AB5: =9.81 -> 9.81
B7: massa | C7: =E7 -> 1000 | D7: kg | E7: 1000 | H7: Schaal Fw,dwars aanpassen. 1 m ↔ | I7: =V48 -> 130 | J7: N | AA7: Uit de bocht? Ja = 1 | AB7: =IF(W44<V43,1,0) -> 1
B9: wrijvingscoëfficiënt | C9: =E9/100 -> 0.51 | E9: 51 | H9: Beweging versnellen met een factor | I9: =V22 -> 5 | AA9: baanstraal = | AB9: =V45 -> 124.922548
AA10: tx =
B11: Fw,dwars is max | C11: =C9*C7*9.81/1000 -> 5.0031 | D11: kN | H11: Fmpz (Fw,dwars) | I11: =C7*C5^2/C3/1000 -> 12.25490196 | J11: kN
B13: Stopwatch | E13: =((P1*3600+Q1*60+S1+T1)*I9-ROUNDDOWN((P1*3600+Q1*60+S1+T1)*I9/100,0)*100) -> 16.171875 | F13: s | H13: Start beweging | AA13: Mx = | AB13: =-AB1+AB9 -> 73.92254802
V15: tijdvertraging: | AA15: T = | AB15: =2*PI()*AB9/AB3 -> 31.39646073
U16: 1 | V16: 1 | AA16: f = | AB16: =1/AB15 -> 0.03185072383
U17: 2 | V17: 2 | AA17: w= | AB17: =2*PI()/AB15 -> 0.200124
U18: 3 | V18: 5 | AA18: hoek f | AB18: =IF(U1<AB20,0,AB17*(U1-AB20)) -> 1.570796327 | AC18: =AB18/PI()*180 -> 90
U19: 4 | V19: 10 | AA19: xmin (auto) = | AB19: -120
U20: 5 | V20: 20 | AA20: rotonde bereikt op t = | AB20: =ABS(AB19)/AB3 -> 4.8
U21: 6 | V21: 50 | AA21: v max = | AB21: =SQRT(C9*C7*AB5*AB1/C7) -> 15.97366896
U22: 3 | V22: =VLOOKUP(U22,U16:V21,2) -> 5
U23: Krachten en par. Zien? Ja = 1 | V23: 1
U24: Nee: bijtelling x = | V24: =IF(V23=1,0,1000) -> 0
AA25: auto | AC25: koordlengte = r - | AD25: 0.03 | AG25: tekentijd | AH25: =AB20+AB15 -> 36.19646073
AA26: x | AB26: y | AC26: x | AD26: y
U27: auto | V27: 0.05 | AA27: =IF(U1<AB20,AB19+AB3*U1,AB9*SIN(AB17*(U1-AB20))) -> 124.922548 | AB27: =IF(U1<AB20,-AB1,-(AB1-AB9+AB9*COS(AB17*(U1-AB20)))) -> 73.92254802 | AC27: =($AB$1-$AD$25)*COS($AB$17*U1-PI()/2) -> 29.20745642 | AD27: =($AB$1-$AD$25)*SIN($AB$17*U1-PI()/2) -> 41.77158591 | AG27: dt= | AH27: =MIN(AB20,AH25/50) -> 0.7239292146
U28: x | V28: y | AA28: Tekenkader | AC28: 0 | AD28: 0 | AG28: Baan zien? Ja = 1 | AI28: 1
U29: =AB1*COS(AB17*U1-PI()/2) -> 29.22464739 | V29: =AB1*SIN(AB17*U1-PI()/2) -> 41.7961719 | AA29: x | AB29: y | AG29: n | AH29: t | AI29: x | AJ29: y
U30: Fstuw = 1,08*v^2 | V30: =1.08*AB3^2 -> 675 | AA30: =-AB1 -> -51 | AB30: =AA30 -> -51
U31: Schaal: 1N = | V31: 0.04 | AA31: =AB1 -> 51 | AB31: =AB30 -> -51 | AG31: 0 | AH31: =MIN(AG31*$AH$27,$U$1) -> 0 | AI31: =IF($AI$28=0,1000,IF(AH31<$AB$20,$AB$19+$AB$3*AH31,$AB$9*SIN($AB$17*(AH31-$AB$20)))) -> -120 | AJ31: =IF(AH31<=$AB$20,-$AB$1,-($AB$1-$AB$9+$AB$9*COS($AB$17*(AH31-$AB$20)))) -> -51
U32: pijllengte = | V32: =V30*V31 -> 27 | AA32: =AB1 -> 51 | AB32: =AA32 -> 51 | AG32: 1 | AH32: 0.7239292146 | AI32: =IF($AI$28=0,1000,IF(AH32<$AB$20,$AB$19+$AB$3*AH32,$AB$9*SIN($AB$17*(AH32-$AB$20)))) -> -101.9017696 | AJ32: =IF(AH32<=$AB$20,-$AB$1,-($AB$1-$AB$9+$AB$9*COS($AB$17*(AH32-$AB$20)))) -> -51
U33: pijlpuntlengte | V33: 6 | AA33: =-AB1 -> -51 | AB33: =AB32 -> 51 | AG33: 2 | AH33: 1.447858429 | AI33: -83.80353927 | AJ33: -51
U34: pijlpuntbreedte | V34: 6 | AA34: =-AB1 -> -51 | AB34: =AB33 -> 51 | AG34: 3 | AH34: 2.171787644 | AI34: -65.7053089 | AJ34: -51
U35: pijlpuntschuine | V35: =SQRT(V33^2+(V34/2)^2) -> 6.708203932 | AA35: =-AB1 -> -51 | AB35: =AA35 -> -51 | AG35: 4 | AH35: 2.895716858 | AI35: -47.60707854 | AJ35: -51
U36: halve tophoek = | V36: =ASIN(V34/2/V35) -> 0.463647609 | AA36: cirkelbaan = rotonde | AG36: 5 | AH36: 3.619646073 | AI36: -29.50884817 | AJ36: -51
U37: x | V37: y | AA37: wegbreedte = | AB37: 10 | AG37: 6 | AH37: 4.343575288 | AI37: -11.41061781 | AJ37: -51
U38: =$AA$27+$V$24 -> 124.922548 | V38: =AB27 -> 73.92254802 | AA38: binnenbocht R1 = | AB38: =AB1-AB37/2 -> 46 | AG38: 7 | AH38: 5.067504502 | AI38: 6.684418679 | AJ38: -50.82103518
U39: =IF($U$1<$AB$20,$U$38+$V$32,$U$38+$V$32*COS(AB18)) -> 124.922548 | V39: =IF($U$1<$AB$20,$V$38,$V$38+$V$32*SIN(AB18)) -> 100.922548 | AA39: buitenbocht R2 = | AB39: =AB1+AB37/2 -> 56 | AG39: 8 | AH39: 5.791433717 | AI39: 24.62354114 | AJ39: -48.54918025
U40: =U39-$V$35*COS($AB$18-$V$36) -> 121.922548 | V40: =V39-$V$35*SIN($AB$18-$V$36) -> 94.92254802 | AA40: binnenbocht | AC40: buitenbocht | AG40: 9 | AH40: 6.515362931 | AI40: 42.04674484 | AJ40: -43.71126622
U41: =U39 -> 124.922548 | V41: =V39 -> 100.922548 | AA41: dhoek = | AB41: 10 | AG41: 10 | AH41: 7.239292146 | AI41: 58.58897435 | AJ41: -36.4086583
U42: =U39-$V$35*SIN(PI()/2-$AB$18-$V$36) -> 127.922548 | V42: =V39-$V$35*COS(PI()/2-$AB$18-$V$36) -> 94.92254802 | AA42: x | AB42: y | AG42: 11 | AH42: 7.963221361 | AI42: 73.90363262 | AJ42: -26.79436262
U43: Fmpz= | V43: =C7*AB3^2/AB1 -> 12254.90196 | Z43: 0 | AA43: =$AB$38*COS(Z43*$AB$41/180*PI()) -> 46 | AB43: =$AB$38*SIN(Z43*$AB$41/180*PI()) -> 0 | AC43: =$AB$39*COS(Z43*$AB$41/180*PI()) -> 56 | AD43: =$AB$39*SIN(Z43*$AB$41/180*PI()) -> 0 | AG43: 12 | AH43: 8.687150575 | AI43: 87.66984301 | AJ43: -15.06982037
U44: Fw,dwars = | V44: =IF($U$1<$AB$20,0,C9*C7*AB5) -> 5003.1 | W44: =C9*C7*AB5 -> 5003.1 | Z44: 1 | AA44: =$AB$38*COS(Z44*$AB$41/180*PI()) -> 45.30115664 | AB44: =$AB$38*SIN(Z44*$AB$41/180*PI()) -> 7.987816173 | AC44: =$AB$39*COS(Z44*$AB$41/180*PI()) -> 55.14923417 | AD44: =$AB$39*SIN(Z44*$AB$41/180*PI()) -> 9.724297949 | AG44: 13 | AH44: 9.41107979 | AI44: 99.59917233 | AJ44: -1.480687159
U45: r (baan) = | V45: =IF(W44=0,100000000000,IF(V43<=W44,AB1,(C7*AB3^2)/W44)) -> 124.922548 | Z45: 2 | AA45: 43.22586056 | AB45: 15.73292659 | AC45: 52.62278676 | AD45: 19.15312803 | AG45: 14 | AH45: 10.135009 | AI45: 109.4416742 | AJ45: 13.688314
U46: My = | V46: =-AB1+V45 -> 73.92254802 | Z46: 3 | AA46: 39.83716857 | AB46: 23 | AC46: 48.49742261 | AD46: 28 | AG46: 15 | AH46: 10.85893822 | AI46: 116.991126 | AJ46: 30.11935829
U47: Mx = | V47: 0 | Z47: 4 | AA47: 35.23804438 | AB47: 29.56823005 | AC47: 42.89848881 | AD47: 35.99610614 | AG47: 16 | AH47: 11.58286743 | AI47: 122.0893498 | AJ47: 47.46817826
U48: schaalschuifbalk 1 m = . . .N | V48: 130 | Z48: 5 | AA48: 29.56823005 | AB48: 35.23804438 | AC48: 35.99610614 | AD48: 42.89848881 | AG48: 17 | AH48: 12.30679665 | AI48: 124.6295261 | AJ48: 65.37127698
U49: schaal (m/N) = | V49: =1/V48 -> 0.007692307692 | Z49: 6 | AA49: 23 | AB49: 39.83716857 | AC49: 28 | AD49: 48.49742261 | AG49: 18 | AH49: 12.64911518 | AI49: 124.922548 | AJ49: 73.92254802
U50: pijllengte = | V50: =V44*V49 -> 38.48538462 | Z50: 7 | AA50: 15.73292659 | AB50: 43.22586056 | AC50: 19.15312803 | AD50: 52.62278676 | AG50: 19 | AH50: 12.64911518 | AI50: 124.922548 | AJ50: 73.92254802
U51: pijlpuntlengte | V51: 0.1 | Z51: 8 | AA51: 7.987816173 | AB51: 45.30115664 | AC51: 9.724297949 | AD51: 55.14923417 | AG51: 20 | AH51: 12.64911518 | AI51: 124.922548 | AJ51: 73.92254802
U52: pijlpuntbreedte | V52: 0.05 | Z52: 9 | AA52: 2.817841446e-15 | AB52: 46 | AC52: 3.430415674e-15 | AD52: 56 | AG52: 21 | AH52: 12.64911518 | AI52: 124.922548 | AJ52: 73.92254802
U53: x | V53: y | Z53: 10 | AA53: -7.987816173 | AB53: 45.30115664 | AC53: -9.724297949 | AD53: 55.14923417 | AG53: 22 | AH53: 12.64911518 | AI53: 124.922548 | AJ53: 73.92254802
U54: =IF(OR(U1<AB20,C9=0),1000,AA27+V24) -> 124.922548 | V54: =AB27 -> 73.92254802 | Z54: 11 | AA54: -15.73292659 | AB54: 43.22586056 | AC54: -19.15312803 | AD54: 52.62278676 | AG54: 23 | AH54: 12.64911518 | AI54: 124.922548 | AJ54: 73.92254802
U55: =$U$54+$V$50*COS(AB18+PI()/2) -> 86.4371634 | V55: =$V$54+$V$50*SIN(AB18+PI()/2) -> 73.92254802 | Z55: 12 | AA55: -23 | AB55: 39.83716857 | AC55: -28 | AD55: 48.49742261 | AG55: 24 | AH55: 12.64911518 | AI55: 124.922548 | AJ55: 73.92254802
U56: =U55-$V$35*COS($AB$18+PI()/2-$V$36) -> 92.4371634 | V56: =V55-$V$35*SIN($AB$18-$V$36+PI()/2) -> 70.92254802 | Z56: 13 | AA56: -29.56823005 | AB56: 35.23804438 | AC56: -35.99610614 | AD56: 42.89848881 | AG56: 25 | AH56: 12.64911518 | AI56: 124.922548 | AJ56: 73.92254802
U57: =U55 -> 86.4371634 | V57: =V55 -> 73.92254802 | Z57: 14 | AA57: -35.23804438 | AB57: 29.56823005 | AC57: -42.89848881 | AD57: 35.99610614 | AG57: 26 | AH57: 12.64911518 | AI57: 124.922548 | AJ57: 73.92254802
U58: =U55+$V$35*SIN(PI()-$AB$18-$V$36) -> 92.4371634 | V58: =V55+$V$35*COS(PI()-$AB$18-$V$36) -> 76.92254802 | Z58: 15 | AA58: -39.83716857 | AB58: 23 | AC58: -48.49742261 | AD58: 28 | AG58: 27 | AH58: 12.64911518 | AI58: 124.922548 | AJ58: 73.92254802
U59: Fw,lucht = | V59: =V30 -> 675 | Z59: 16 | AA59: -43.22586056 | AB59: 15.73292659 | AC59: -52.62278676 | AD59: 19.15312803 | AG59: 28 | AH59: 12.64911518 | AI59: 124.922548 | AJ59: 73.92254802
U60: richtingshoek = | V60: =IF(ISERROR(IF(AND(AA27>=0,AB27>-AB1),ATAN((V55-V39)/(U55-U39)),ATAN((V55-V39)/(U55-U39))+PI())),-PI()/2,IF(AND(AA27>=0,AB27>-AB1),ATAN((V55-V39)/(U55-U39)),ATAN((V55-V39)/(U55-U39))+PI())) -> 0.6117755478 | Z60: 17 | AA60: -45.30115664 | AB60: 7.987816173 | AC60: -55.14923417 | AD60: 9.724297949 | AG60: 29 | AH60: 12.64911518 | AI60: 124.922548 | AJ60: 73.92254802
Z61: 18 | AA61: -46 | AB61: 5.635682893e-15 | AC61: -56 | AD61: 6.860831347e-15 | AG61: 30 | AH61: 12.64911518 | AI61: 124.922548 | AJ61: 73.92254802
U62: pijllengte = | V62: =V59*V31 -> 27 | Z62: 19 | AA62: -45.30115664 | AB62: -7.987816173 | AC62: -55.14923417 | AD62: -9.724297949 | AG62: 31 | AH62: 12.64911518 | AI62: 124.922548 | AJ62: 73.92254802
U63: pijlpuntschuine | V63: =V35 -> 6.708203932 | Z63: 20 | AA63: -43.22586056 | AB63: -15.73292659 | AC63: -52.62278676 | AD63: -19.15312803 | AG63: 32 | AH63: =MIN(AG63*$AH$27,$U$1) -> 12.64911518 | AI63: 124.922548 | AJ63: 73.92254802
Z64: 21 | AA64: -39.83716857 | AB64: -23 | AC64: -48.49742261 | AD64: -28 | AG64: 33 | AH64: 12.64911518 | AI64: 124.922548 | AJ64: 73.92254802
U65: x | V65: y | Z65: 22 | AA65: -35.23804438 | AB65: -29.56823005 | AC65: -42.89848881 | AD65: -35.99610614 | AG65: 34 | AH65: 12.64911518 | AI65: 124.922548 | AJ65: 73.92254802
U66: =$AA$27+$V$24 -> 124.922548 | V66: =AB27 -> 73.92254802 | Z66: 23 | AA66: -29.56823005 | AB66: -35.23804438 | AC66: -35.99610614 | AD66: -42.89848881 | AG66: 35 | AH66: 12.64911518 | AI66: 124.922548 | AJ66: 73.92254802
U67: =$U$66+$V$62*COS(AB18+PI()) -> 124.922548 | V67: =$V$66+$V$62*SIN(AB18+PI()) -> 46.92254802 | Z67: 24 | AA67: -23 | AB67: -39.83716857 | AC67: -28 | AD67: -48.49742261 | AG67: 36 | AH67: 12.64911518 | AI67: 124.922548 | AJ67: 73.92254802
U68: =U67-$V$35*COS($AB$18+PI()-$V$36) -> 127.922548 | V68: =V67-$V$35*SIN($AB$18+PI()-$V$36) -> 52.92254802 | Z68: 25 | AA68: -15.73292659 | AB68: -43.22586056 | AC68: -19.15312803 | AD68: -52.62278676 | AG68: 37 | AH68: 12.64911518 | AI68: 124.922548 | AJ68: 73.92254802
U69: =U67 -> 124.922548 | V69: =V67 -> 46.92254802 | Z69: 26 | AA69: -7.987816173 | AB69: -45.30115664 | AC69: -9.724297949 | AD69: -55.14923417 | AG69: 38 | AH69: 12.64911518 | AI69: 124.922548 | AJ69: 73.92254802
U70: =U67-$V$35*SIN(PI()/2-$AB$18-PI()-$V$36) -> 121.922548 | V70: =V67-$V$35*COS(PI()/2-$AB$18-PI()-$V$36) -> 52.92254802 | Z70: 27 | AA70: -8.453524339e-15 | AB70: -46 | AC70: -1.029124702e-14 | AD70: -56 | AG70: 39 | AH70: 12.64911518 | AI70: 124.922548 | AJ70: 73.92254802
Z71: 28 | AA71: 7.987816173 | AB71: -45.30115664 | AC71: 9.724297949 | AD71: -55.14923417 | AG71: 40 | AH71: 12.64911518 | AI71: 124.922548 | AJ71: 73.92254802
Z72: 29 | AA72: 15.73292659 | AB72: -43.22586056 | AC72: 19.15312803 | AD72: -52.62278676 | AG72: 41 | AH72: 12.64911518 | AI72: 124.922548 | AJ72: 73.92254802
U73: x | V73: y | Z73: 30 | AA73: 23 | AB73: -39.83716857 | AC73: 28 | AD73: -48.49742261 | AG73: 42 | AH73: 12.64911518 | AI73: 124.922548 | AJ73: 73.92254802
U74: =U39+V25 -> 124.922548 | V74: =V39 -> 100.922548 | Z74: 31 | AA74: 29.56823005 | AB74: -35.23804438 | AC74: 35.99610614 | AD74: -42.89848881 | AG74: 43 | AH74: 12.64911518 | AI74: 124.922548 | AJ74: 73.92254802
U75: =U55 -> 86.4371634 | V75: =V55 -> 73.92254802 | Z75: 32 | AA75: 35.23804438 | AB75: -29.56823005 | AC75: 42.89848881 | AD75: -35.99610614 | AG75: 44 | AH75: 12.64911518 | AI75: 124.922548 | AJ75: 73.92254802
U76: =U67 -> 124.922548 | V76: =V67 -> 46.92254802 | Z76: 33 | AA76: 39.83716857 | AB76: -23 | AC76: 48.49742261 | AD76: -28 | AG76: 45 | AH76: 12.64911518 | AI76: 124.922548 | AJ76: 73.92254802
U77: vangrail op y = | V77: =AB24 -> 0 | Z77: 34 | AA77: 43.22586056 | AB77: -15.73292659 | AC77: 52.62278676 | AD77: -19.15312803 | AG77: 46 | AH77: 12.64911518 | AI77: 124.922548 | AJ77: 73.92254802
U78: x | V78: y | Z78: 35 | AA78: 45.30115664 | AB78: -7.987816173 | AC78: 55.14923417 | AD78: -9.724297949 | AG78: 47 | AH78: 12.64911518 | AI78: 124.922548 | AJ78: 73.92254802
U79: -2.5 | V79: =V77 -> 0 | Z79: 36 | AA79: 46 | AB79: -1.127136579e-14 | AC79: 56 | AD79: -1.372166269e-14 | AG79: 48 | AH79: 12.64911518 | AI79: 124.922548 | AJ79: 73.92254802
U80: 1.1 | V80: =V77 -> 0 | AG80: 49 | AH80: 12.64911518 | AI80: 124.922548 | AJ80: 73.92254802
AG81: 50 | AH81: 12.64911518 | AI81: 124.922548 | AJ81: 73.92254802

Sheet Looping
B1: Een bakje met water wordt aan een stang eenparig rondgeslingerd. | P1: 0 | Q1: 0 | R1: : | S1: 0 | T1: 0 | U1: =(P1*3600+Q1*60+S1+T1)/I7 -> 0 | V1: (vertraagd) | AA1: r = | AB1: =C3 -> 1
B3: Straal | C3: =E3/100 -> 1 | D3: m | E3: 100 | H3: Baan zien? | I3: =IF(AI26=1,"Ja","Nee") -> Ja | U3: =U1*V20 -> 0 | V3: onvertraagd | AA3: vA = vonder | AB3: =C5 -> 2.3
B5: Snelheid | C5: =E5/10 -> 2.3 | D5: m/s | E5: 23 | H5: Krachten op het water zien? (Fbakje, Fz, Fr en Fn) | I5: =IF(V21=1,"Ja","Nee") -> Ja | AA5: g= | AB5: =9.81 -> 9.81
B7: massa | C7: =E7/1000 -> 0.01 | D7: kg | E7: 10 | H7: Beweging vertragen met een factor | I7: =V20 -> 5 | J7: 3 | AA7: hoek (los v.d. wand) = | AB7: =ASIN(AB3^2/(AB1*AB5)) -> 0.5695411286 | AC7: rad
AA8: xeind=
B9: Stopwatch | E9: =(U1-ROUNDDOWN(U1/100,0)*100) -> 0 | F9: s | H9: Start beweging | AA9: t (los van de wand): | AB9: =(PI()/2+AB7)/AB15 -> 0.9305815024
AA10: tx =
AA11: los van de wand? Ja = 1 | AB11: =IF(AB3^2/(AB1*AB5)<1,1,0) -> 1
V13: tijdvertraging: | AA13: T = | AB13: =2*PI()*AB1/AB3 -> 2.731819699
U14: 1 | V14: 1 | AA14: f = | AB14: =1/AB13 -> 0.3660563691
U15: 2 | V15: 2 | AA15: w= | AB15: =2*PI()/AB13 -> 2.3
U16: 3 | V16: 5 | AA16: hoek f | AB16: =AB15*U1-PI()/2 -> -1.570796327 | AC16: =AB16/PI()*180 -> -90
U17: 4 | V17: 10 | Z17: loslaatpunt | AA17: x | AB17: y
U18: 5 | V18: 20 | AA18: =IF(AB11=0,100,AB1*COS(AB7)) -> 0.8421485082 | AB18: =IF(AB11=0,100,AB1*SIN(AB7)) -> 0.5392456677
U19: 6 | V19: 50 | AA19: neerstorttijd op de grond: | AB19: =(AB3*COS(AB7)+SQRT(AB3^2*COS(AB7)^2+2*AB5*(AB1*SIN(AB7)+-AB22)))/AB5+AB9 -> 1.771423121
U20: 3 | V20: =VLOOKUP(U20,U14:V19,2) -> 5 | AA20: neerstorttijd vertraagd | AB20: =AB19/V20 -> 0.3542846243
U21: Krachten en par. Zien? Ja = 1 | V21: 1 | AA21: neerstort x = | AB21: =AA18-AB3*SIN(AB7)*(AB19-AB9) -> -0.2007179525
U22: Nee: bijtelling x = | V22: =IF(V21=1,0,100) -> 0 | AA22: laagste punt: y= | AB22: -1.3
U23: t>tlos van wand, Ja: bijtelling = | V23: =IF(AB11=0,0,IF(AND(AB11=1,U1>AB9),100,0)) -> 0 | AA23: watermassa: | AC23: koordlengte = r - | AD23: 0.03 | AG23: tekentijd | AH23: =IF(AB11=0,AB13,AB19) -> 1.771423121
AA24: x | AB24: y | AC24: x | AD24: y
U25: midden bodem | V25: 0.05 | AA25: =IF(AB25<=AB22,AB21,IF(AB11=0,AB1*COS(AB15*U1-PI()/2),IF(AND(AB11=1,AB15*U1-PI()/2>AB7,U1>AB9),AB1*COS(AB7)-AB3*SIN(AB7)*(U1-AB9),AB1*COS(AB15*U1-PI()/2)))) -> 6.125742275e-17 | AB25: =MAX(AB22,IF(AB11=0,AB1*SIN(AB15*U1-PI()/2),IF(AND(AB11=1,AB15*U1-PI()/2>AB7,U1>AB9),AB1*SIN(AB7)+AB3*COS(AB7)*(U1-AB9)-0.5*AB5*(U1-AB9)^2,AB1*SIN(AB15*U1-PI()/2)))) -> -1 | AC25: =($AB$1-$AD$23)*COS($AB$15*U1-PI()/2) -> 5.941970006e-17 | AD25: =($AB$1-$AD$23)*SIN($AB$15*U1-PI()/2) -> -0.97 | AG25: dt= | AH25: =AH23/50 -> 0.03542846243
U26: x | V26: y | AA26: Tekenkader | AC26: 0 | AD26: 0 | AG26: Baan zien? Ja = 1 | AI26: 1
U27: =AB1*COS(AB15*U1-PI()/2) -> 6.125742275e-17 | V27: =AB1*SIN(AB15*U1-PI()/2) -> -1 | AA27: x | AB27: y | AG27: n | AH27: t | AI27: x | AJ27: y
U28: Fz = m*g = | V28: =C7*AB5 -> 0.0981 | AA28: =-AB1 -> -1 | AB28: =AA28 -> -1
U29: Schaal: 1N = | V29: 2 | AA29: =AB1 -> 1 | AB29: =AB28 -> -1 | AG29: 0 | AH29: =MIN(AG29*$AH$25,$U$1) -> 0 | AI29: =IF($AI$26=0,100,IF($AB$11=0,$AB$1*COS($AB$15*AH29-PI()/2),IF($AB$11=1,IF(AH29<$AB$9,$AB$1*COS($AB$15*AH29-PI()/2),$AB$1*COS($AB$7)-$AB$3*SIN($AB$7)*(AH29-$AB$9))))) -> 6.125742275e-17 | AJ29: =IF($AB$11=0,$AB$1*SIN($AB$15*AH29-PI()/2),IF($AB$11=1,IF(AH29<$AB$9,$AB$1*SIN($AB$15*AH29-PI()/2),$AB$1*SIN($AB$7)+$AB$3*COS($AB$7)*(AH29-$AB$9)-0.5*$AB$5*(AH29-$AB$9)^2))) -> -1
U30: pijllengte = | V30: =V28*V29 -> 0.1962 | AA30: =AB1 -> 1 | AB30: =AA30 -> 1 | AG30: 1 | AH30: =MIN(AG30*$AH$25,$U$1) -> 0 | AI30: =IF($AI$26=0,100,IF($AB$11=0,$AB$1*COS($AB$15*AH30-PI()/2),IF($AB$11=1,IF(AH30<$AB$9,$AB$1*COS($AB$15*AH30-PI()/2),$AB$1*COS($AB$7)-$AB$3*SIN($AB$7)*(AH30-$AB$9))))) -> 6.125742275e-17 | AJ30: =IF($AB$11=0,$AB$1*SIN($AB$15*AH30-PI()/2),IF($AB$11=1,IF(AH30<$AB$9,$AB$1*SIN($AB$15*AH30-PI()/2),$AB$1*SIN($AB$7)+$AB$3*COS($AB$7)*(AH30-$AB$9)-0.5*$AB$5*(AH30-$AB$9)^2))) -> -1
U31: pijlpuntlengte | V31: 0.075 | AA31: =-AB1 -> -1 | AB31: =AB30 -> 1 | AG31: 2 | AH31: 0 | AI31: 6.125742275e-17 | AJ31: -1
U32: pijlpuntbreedte | V32: 0.0375 | AA32: =-AB1 -> -1 | AB32: =AB31 -> 1 | AG32: 3 | AH32: 0 | AI32: 6.125742275e-17 | AJ32: -1
U33: pijlpuntschuine | V33: =SQRT(V31^2+(V32/2)^2) -> 0.07730823048 | AA33: =-AB1 -> -1 | AB33: =AA33 -> -1 | AG33: 4 | AH33: 0 | AI33: 6.125742275e-17 | AJ33: -1
U34: halve tophoek = | V34: =ASIN(V32/2/V33) -> 0.2449786631 | AA34: cirkelbaan | AG34: 5 | AH34: 0 | AI34: 6.125742275e-17 | AJ34: -1
U35: x | V35: y | AA35: dhoek = | AB35: 10 | AG35: 6 | AH35: 0 | AI35: 6.125742275e-17 | AJ35: -1
U36: =AA25+V22 -> 6.125742275e-17 | V36: =AB25 -> -1 | AA36: x | AB36: y | AG36: 7 | AH36: 0 | AI36: 6.125742275e-17 | AJ36: -1
U37: =U36 -> 6.125742275e-17 | V37: =AB25-V30 -> -1.1962 | Z37: 0 | AA37: =$AB$1*COS(Z37*$AB$35/180*PI()) -> 1 | AB37: =$AB$1*SIN(Z37*$AB$35/180*PI()) -> 0 | AG37: 8 | AH37: 0 | AI37: 6.125742275e-17 | AJ37: -1
U38: =U36-V32/2 -> -0.01875 | V38: =V37+V31 -> -1.1212 | Z38: 1 | AA38: 0.984807753 | AB38: 0.1736481777 | AG38: 9 | AH38: 0 | AI38: 6.125742275e-17 | AJ38: -1
U39: =U36 -> 6.125742275e-17 | V39: =V37 -> -1.1962 | Z39: 2 | AA39: 0.9396926208 | AB39: 0.3420201433 | AG39: 10 | AH39: 0 | AI39: 6.125742275e-17 | AJ39: -1
U40: =U36+V32/2 -> 0.01875 | V40: =V39+V31 -> -1.1212 | Z40: 3 | AA40: 0.8660254038 | AB40: 0.5 | AG40: 11 | AH40: 0 | AI40: 6.125742275e-17 | AJ40: -1
U41: Fmpz = | V41: =C7*AB3^2/AB1 -> 0.0529 | Z41: 4 | AA41: 0.7660444431 | AB41: 0.6427876097 | AG41: 12 | AH41: 0 | AI41: 6.125742275e-17 | AJ41: -1
Z42: 5 | AA42: 0.6427876097 | AB42: 0.7660444431 | AG42: 13 | AH42: 0 | AI42: 6.125742275e-17 | AJ42: -1
Z43: 6 | AA43: 0.5 | AB43: 0.8660254038 | AG43: 14 | AH43: 0 | AI43: 6.125742275e-17 | AJ43: -1
U44: pijllengte = | V44: =V41*V29 -> 0.1058 | Z44: 7 | AA44: 0.3420201433 | AB44: 0.9396926208 | AG44: 15 | AH44: 0 | AI44: 6.125742275e-17 | AJ44: -1
U45: pijlpuntlengte | V45: 0.1 | Z45: 8 | AA45: 0.1736481777 | AB45: 0.984807753 | AG45: 16 | AH45: 0 | AI45: 6.125742275e-17 | AJ45: -1
U46: pijlpuntbreedte | V46: 0.05 | Z46: 9 | AA46: 6.125742275e-17 | AB46: 1 | AG46: 17 | AH46: 0 | AI46: 6.125742275e-17 | AJ46: -1
U47: x | V47: y | Z47: 10 | AA47: -0.1736481777 | AB47: 0.984807753 | AG47: 18 | AH47: 0 | AI47: 6.125742275e-17 | AJ47: -1
U48: =AA25+V22+V23 -> 6.125742275e-17 | V48: =AB25 -> -1 | Z48: 11 | AA48: -0.3420201433 | AB48: 0.9396926208 | AG48: 19 | AH48: 0 | AI48: 6.125742275e-17 | AJ48: -1
U49: =V44*COS(AB16+PI())+U48 -> 6.773845807e-17 | V49: =V44*SIN(AB16+PI())+V48 -> -0.8942 | Z49: 12 | AA49: -0.5 | AB49: 0.8660254038 | AG49: 20 | AH49: 0 | AI49: 6.125742275e-17 | AJ49: -1
U50: =U49+V33*COS(AB16-V34) -> -0.01875 | V50: =V49+V33*SIN(AB16-V34) -> -0.9692 | Z50: 13 | AA50: -0.6427876097 | AB50: 0.7660444431 | AG50: 21 | AH50: 0 | AI50: 6.125742275e-17 | AJ50: -1
U51: =U49 -> 6.773845807e-17 | V51: =V49 -> -0.8942 | Z51: 14 | AA51: -0.7660444431 | AB51: 0.6427876097 | AG51: 22 | AH51: 0 | AI51: 6.125742275e-17 | AJ51: -1
U52: =U49+V33*COS(AB16+V34) -> 0.01875 | V52: =V49+V33*SIN(AB16+V34) -> -0.9692 | Z52: 15 | AA52: -0.8660254038 | AB52: 0.5 | AG52: 23 | AH52: 0 | AI52: 6.125742275e-17 | AJ52: -1
U53: Femmer = | V53: =SQRT((U37-U49)^2+(V49-V37)^2)/V29 -> 0.151 | Z53: 16 | AA53: -0.9396926208 | AB53: 0.3420201433 | AG53: 24 | AH53: 0 | AI53: 6.125742275e-17 | AJ53: -1
U54: richtingshoek = | V54: =IF(ISERROR(IF(AND(AA25>=0,AB25>-AB1),ATAN((V49-V37)/(U49-U37)),ATAN((V49-V37)/(U49-U37))+PI())),-PI()/2,IF(AND(AA25>=0,AB25>-AB1),ATAN((V49-V37)/(U49-U37)),ATAN((V49-V37)/(U49-U37))+PI())) -> 4.71238898 | Z54: 17 | AA54: -0.984807753 | AB54: 0.1736481777 | AG54: 25 | AH54: 0 | AI54: 6.125742275e-17 | AJ54: -1
Z55: 18 | AA55: -1 | AB55: 1.225148455e-16 | AG55: 26 | AH55: 0 | AI55: 6.125742275e-17 | AJ55: -1
U56: pijllengte = | V56: =V53*V29 -> 0.302 | Z56: 19 | AA56: -0.984807753 | AB56: -0.1736481777 | AG56: 27 | AH56: 0 | AI56: 6.125742275e-17 | AJ56: -1
U57: pijlpuntschuine | V57: =V33 -> 0.07730823048 | Z57: 20 | AA57: -0.9396926208 | AB57: -0.3420201433 | AG57: 28 | AH57: 0 | AI57: 6.125742275e-17 | AJ57: -1
Z58: 21 | AA58: -0.8660254038 | AB58: -0.5 | AG58: 29 | AH58: 0 | AI58: 6.125742275e-17 | AJ58: -1
U59: x | V59: y | Z59: 22 | AA59: -0.7660444431 | AB59: -0.6427876097 | AG59: 30 | AH59: 0 | AI59: 6.125742275e-17 | AJ59: -1
U60: =U48+V23 -> 6.125742275e-17 | V60: =V48 -> -1 | Z60: 23 | AA60: -0.6427876097 | AB60: -0.7660444431 | AG60: 31 | AH60: 0 | AI60: 6.125742275e-17 | AJ60: -1
U61: =V56*COS(V54+PI())+U60 -> 1.537561311e-16 | V61: =V56*SIN(V54+PI())+V60 -> -0.698 | Z61: 24 | AA61: -0.5 | AB61: -0.8660254038 | AG61: 32 | AH61: 0 | AI61: 6.125742275e-17 | AJ61: -1
U62: =U61+V57*COS(V54-V34) -> -0.01875 | V62: =V61+V57*SIN(V54-V34) -> -0.773 | Z62: 25 | AA62: -0.3420201433 | AB62: -0.9396926208 | AG62: 33 | AH62: 0 | AI62: 6.125742275e-17 | AJ62: -1
U63: =U61 -> 1.537561311e-16 | V63: =V61 -> -0.698 | Z63: 26 | AA63: -0.1736481777 | AB63: -0.984807753 | AG63: 34 | AH63: 0 | AI63: 6.125742275e-17 | AJ63: -1
U64: =U61+V57*COS(V54+V34) -> 0.01875 | V64: =V61+V57*SIN(V54+V34) -> -0.773 | Z64: 27 | AA64: -1.837722682e-16 | AB64: -1 | AG64: 35 | AH64: 0 | AI64: 6.125742275e-17 | AJ64: -1
U65: parallellogram | Z65: 28 | AA65: 0.1736481777 | AB65: -0.984807753 | AG65: 36 | AH65: 0 | AI65: 6.125742275e-17 | AJ65: -1
Z66: 29 | AA66: 0.3420201433 | AB66: -0.9396926208 | AG66: 37 | AH66: 0 | AI66: 6.125742275e-17 | AJ66: -1
U67: x | V67: y | Z67: 30 | AA67: 0.5 | AB67: -0.8660254038 | AG67: 38 | AH67: 0 | AI67: 6.125742275e-17 | AJ67: -1
U68: =U37+V23 -> 6.125742275e-17 | V68: =V37 -> -1.1962 | Z68: 31 | AA68: 0.6427876097 | AB68: -0.7660444431 | AG68: 39 | AH68: 0 | AI68: 6.125742275e-17 | AJ68: -1
U69: =U49 -> 6.773845807e-17 | V69: =V49 -> -0.8942 | Z69: 32 | AA69: 0.7660444431 | AB69: -0.6427876097 | AG69: 40 | AH69: 0 | AI69: 6.125742275e-17 | AJ69: -1
U70: =U61 -> 1.537561311e-16 | V70: =V61 -> -0.698 | Z70: 33 | AA70: 0.8660254038 | AB70: -0.5 | AG70: 41 | AH70: 0 | AI70: 6.125742275e-17 | AJ70: -1
U71: grond op y = | V71: =AB22 -> -1.3 | Z71: 34 | AA71: 0.9396926208 | AB71: -0.3420201433 | AG71: 42 | AH71: 0 | AI71: 6.125742275e-17 | AJ71: -1
U72: x | V72: y | Z72: 35 | AA72: 0.984807753 | AB72: -0.1736481777 | AG72: 43 | AH72: 0 | AI72: 6.125742275e-17 | AJ72: -1
U73: -2.5 | V73: =V71 -> -1.3 | Z73: 36 | AA73: 1 | AB73: -2.45029691e-16 | AG73: 44 | AH73: 0 | AI73: 6.125742275e-17 | AJ73: -1
U74: 1.1 | V74: =V71 -> -1.3 | AG74: 45 | AH74: 0 | AI74: 6.125742275e-17 | AJ74: -1
U75: Fn op de grond | AG75: 46 | AH75: 0 | AI75: 6.125742275e-17 | AJ75: -1
U76: x | V76: y | AG76: 47 | AH76: 0 | AI76: 6.125742275e-17 | AJ76: -1
U77: =IF(AND($V$21=1,$AB$25=$AB$22),$AB$21,100) -> 100 | V77: =$AB$22 -> -1.3 | AG77: 48 | AH77: 0 | AI77: 6.125742275e-17 | AJ77: -1
U78: =IF(AND($V$21=1,$AB$25=$AB$22),$AB$21,100) -> 100 | V78: =$V$77+$V$30 -> -1.1038 | AG78: 49 | AH78: 0 | AI78: 6.125742275e-17 | AJ78: -1
U79: =IF(AND($V$21=1,$AB$25=$AB$22),$AB$21+$V$32/2,100) -> 100 | V79: =$V$77+$V$30-$V$31 -> -1.1788 | AG79: 50 | AH79: 0 | AI79: 6.125742275e-17 | AJ79: -1
U80: =IF(AND($V$21=1,$AB$25=$AB$22),$AB$21,100) -> 100 | V80: =$V$77+$V$30 -> -1.1038
U81: =IF(AND($V$21=1,$AB$25=$AB$22),$AB$21-$V$32/2,100) -> 100 | V81: =$V$77+$V$30-$V$31 -> -1.1788

Sheet Sateliet
B1: Een satelliet in een cirkelbaan om de aarde | P1: 0 | Q1: 0 | R1: : | S1: 0 | T1: 0 | U1: =((P1*3600+Q1*60+S1+T1)*I9) -> 0 | V1: (versneld in s) | AA1: R(0) sateliet | AB1: =C3 -> 40056135.97 | AC1: m
B3: r(0) | C3: =0.5*AB21+0.5*AB21/10*E3 -> 40056135.97 | D3: m | E3: 9 | H3: Geostationnaire satelliet zien? | I3: =IF(AI26=1,"Ja","Nee") -> Nee | U3: =U1/I9 -> 0 | V3: onvertraagd in h | AA3: v satelliet bij cirkel | AB3: =C5 -> 3751.802314 | AC3: m/s | AD3: =AB22 -> 3075.247799
B5: v(0): | C5: =0.5*AD3+AD3/150*E5 -> 3751.802314 | D5: m/s | E5: 108 | H5: Kracht op de satelliet zien? (Fg) | I5: =IF(V21=1,"Ja","Nee") -> Nee | AA5: g= | AB5: =9.81 -> 9.81
B7: massa: | C7: =E7 -> 1000 | D7: kg | E7: 1000 | H7: Schaal aanpassen: Fg: 1 hokje ↔ | I7: =V44 -> 100 | J7: N | AA7: G = | AB7: 6.6726e-11 | AM7: willekeurige sateliet
B9: =IF(ISERROR(AQ26),"Satelliet","Omlooptijd:") -> Omlooptijd: | C9: =IF(ISERROR(AQ26),"verloren!", AQ26) -> 49.39232268 | D9: =IF(ISERROR(AQ26),"","h") -> h | H9: Beweging versnellen met een factor | I9: =V20 -> 6000 | AA9: m satelliet = m' | AB9: =C7 -> 1000 | AO9: v(cirkel) = | AP9: =SQRT(AP13/(AB9*AB1)) -> 3155.137669
AA10: tx =
B11: Stopwatch | E11: =(P1*3600+Q1*60+S1+T1)*I9/3600 -> 0 | F11: h | H11: Start beweging | AA11: maarde = | AB11: 5.976e+24 | AO11: vmax (ellips) = | AP11: =SQRT(2*AP13/(AB9*AB1)) -> 4462.038482
B13: =IF(ISERROR(AQ25),"Hyperboolbaan, satelliet verdwijnt in de ruimte!",IF(AND(AQ23=1,C3=AB21,ABS(C9-AB13)<0.000000001),"Geostationnaire cirkelbaan",IF(AQ23=1,"Cirkelbaan",IF(AP15<1,"Ellipsbaan",IF(AP15=1,"paraboolbaan"))))) -> Ellipsbaan | V13: tijdversnelling | AA13: Taarde = | AB13: 23.93 | AC13: h | AO13: b = GMm = | AP13: =AB7*AB9*AB11 -> 3.98754576e+17
U14: 1 | V14: 1000 | AA14: R aardopp | AB14: 6378000 | AO14: E = 1/2mv0^2 -b/r0 = | AP14: =1/2*AB9*AB3^2-AP13/AB1 -> -2916883406
U15: 2 | V15: 2000 | AA15: waarde = | AB15: =2*PI()/(AB13*3600) -> 7.29347786e-05 | AM15: r = p/(1+ecos(f)) | AO15: e = wortelabs((2Em'a^2/b^2 + 1)) = | AP15: =IF(ISERROR(SQRT(2*$AP$14*$AB$9*$AO$21^2/$AP$13^2+1)),0,SQRT(2*$AP$14*$AB$9*$AO$21^2/$AP$13^2+1)) -> 0.41398 | AQ15: kleiner 1? | AR15: =IF(AP15<1,"ellips","hyperbool") -> ellips
U16: 3 | V16: 3000 | AA16: Tgeostat. sateliet = | AB16: =AB13 -> 23.93 | AC16: h | AM16: p =ma^2/b = | AO16: =AB9*AO21^2/AP13 -> 56638575.14 | AR16: =1-AP15 -> 0.58602
U17: 4 | V17: 4000 | AB17: =AB16*3600 -> 86148 | AC17: s | AM17: E<0 dan |e| <1 dan ellips | AP17: =2*$AP$14*$AB$9*$AO$21^2/$AP$13^2+1 -> 0.1713794404
U18: 5 | V18: 5000 | AA18: f = | AB18: =1/AB17 -> 1.160793054e-05 | AM18: E=0 dan |e| = 1 dan parabool | AO18: halve lange as a' = p/(1-e^2) = | AP18: =AO16/(1-AP15^2) -> 68352847.98
U19: 6 | V19: 10000 | AA19: w= | AB19: =2*PI()/AB17 -> 7.29347786e-05 | AM19: E>0 dan |e| >1 dan hyperbool
U20: 1000 | V20: 6000 | AA20: hoek f | AB20: =AB19*(U1) -> 0 | AM20: m'= m1m2/(m1+m2)
U21: Fg zien? | V21: 0 | AA21: r = | AB21: =(AB7*AB11/AB19^2)^0.33333333333333 -> 42164353.65 | AM21: a = r0v0 | AO21: =AB1*AB3 -> 1.502827036e+11 | AP21: x max | AQ21: =MAX(AP29:AP129) -> 40056135.97
U22: Nee: bijtelling x = | V22: =IF(V21=1,0,10000000000) -> 10000000000 | AA22: v = | AB22: =AB19*AB21 -> 3075.247799 | AG22: cirkelbaan geostationnaire sateliet: | AM22: r max = | AN22: p/(1-e) = | AO22: =AO16/(1-AP15) -> 96649559.98 | AP22: x min | AQ22: =MIN(AQ29:AQ129) -> -62214255.43
AG23: tekentijd | AH23: =AB17 -> 86148 | AM23: r min = | AN23: p/(1+e) = | AO23: =AO16/(1+AP15) -> 40056135.97 | AP23: =IF(AQ23=1,"Cirkel","Geen cirkel") -> Geen cirkel | AQ23: =IF(ABS(AQ24)<=100,1,0) -> 0
AM24: df = | AN24: 2p/100 = | AO24: =IF(AP15>=1,PI()/100,2*PI()/100) -> 0.06283185307 | AP24: xmax + xmin = | AQ24: =AQ21+AQ22 -> -22158119.46
U25: geostat satelliet | AG25: dt= | AH25: =AH23/50 -> 1722.96 | AM25: cos(f0) = | AN25: =($AO$16-$AB$1)/($AP$15*$AB$1)+0.000000001 -> 1.000000001 | AP25: T=wortel(4p^2m'/ba'^3 )= | AQ25: =SQRT(4*PI()^2*AB9/AP13*AP18^3) -> 177812.3616 | AR25: s
U26: x | V26: y | AG26: Baan zien? Ja = 1 | AI26: 0 | AM26: fo= | AN26: =IF(ISERROR(-ACOS(AN25)),0,-ACOS(AN25)) -> 0 | AQ26: =AQ25/(3600) -> 49.39232268 | AR26: h
U27: =IF(AI26=1,AB21*COS(AB19*U1),10000000000) -> 10000000000 | V27: =AB21*SIN(AB19*U1) -> 0 | AG27: n | AH27: t | AI27: x | AJ27: y | AM27: n | AN27: f | AO27: r | AP27: x | AQ27: y | AS27: v (WvBvE) | AT27: ds | AU27: dt | AV27: t totaal | AW27: tekenen tot t | AX27: x | AY27: y | AZ27: satelliet
U28: evenaar | AN28: r min = | AO28: =MIN(AO29:AO129) -> 40056135.97 | AZ28: t | BA28: x | BB28: y | BC28: r | BD28: Fg
U29: x | V29: y | AG29: 0 | AH29: =MIN(AG29*$AH$25,$U$1) -> 0 | AI29: =IF($AI$26=0,110000000000,$AB$21*COS($AB$19*AH29)) -> 110000000000 | AJ29: =$AB$21*SIN($AB$19*AH29) -> 0 | AM29: 0 | AN29: =IF(ISERROR($AQ$25),MIN(PI()/2*1.2,AM29*$AO$24),AM29*$AO$24) -> 0 | AO29: =$AO$16/(1+$AP$15*COS(AN29-$AN$26)) -> 40056135.97 | AP29: =AO29*COS(AN29) -> 40056135.97 | AQ29: =AO29*SIN(AN29) -> 0 | AS29: =SQRT(2*($AP$14+$AP$13/AO29)/$AB$9) -> 3751.802314 | AT29: =SQRT((AP30-AP29)^2+(AQ30-AQ29)^2) -> 2517220.98 | AU29: =AT29/AS29 -> 670.9364643 | AV29: =SUM(AU$29:$AU29) -> 670.9364643 | AW29: =IF(AV29>$U$1,$U$1,AV29) -> 0 | AX29: =AP29 -> 40056135.97 | AY29: =AQ29 -> 0 | AZ29: =IF(ISERROR(AQ25),MAX(AV29:AV129),MIN((U1/AQ25-ROUNDDOWN(U1/AQ25,0))*AQ25,MAX(AV29:AV129))) -> 0 | BA29: =VLOOKUP(AZ29,AW29:AY129,2,TRUE) -> 40056135.97 | BB29: =VLOOKUP(AZ29,AW29:AY129,3,TRUE) -> 0 | BC29: =SQRT(BA29^2+BB29^2) -> 40056135.97 | BD29: =AB7*AB9*AB11/BC29^2 -> 248.5235649
U30: =$AB$14*COS(AB15*U1) -> 6378000 | V30: =AB14*SIN(AB15*U1) -> 0 | AG30: 1 | AH30: =MIN(AG30*$AH$25,$U$1) -> 0 | AI30: =IF($AI$26=0,110000000000,$AB$21*COS($AB$19*AH30)) -> 110000000000 | AJ30: =$AB$21*SIN($AB$19*AH30) -> 0 | AM30: 1 | AN30: =IF(ISERROR($AQ$25),MIN(PI()/2*1.2,AM30*$AO$24),AM30*$AO$24) -> 0.06283185307 | AO30: =$AO$16/(1+$AP$15*COS(AN30-$AN$26)) -> 40079290.88 | AP30: =AO30*COS(AN30) -> 40000203.55 | AQ30: =AO30*SIN(AN30) -> 2516599.496 | AS30: 3750.269081 | AT30: 2520984.189 | AU30: 672.2142158 | AV30: =SUM(AU$29:$AU30) -> 1343.15068 | AW30: =IF(AV30>$U$1,$U$1,AV30) -> 0 | AX30: =IF(AV30>$U$1,AX29,AP30) -> 40056135.97 | AY30: =IF(AV30>$U$1,AY29,AQ30) -> 0
AG31: 2 | AH31: =MIN(AG31*$AH$25,$U$1) -> 0 | AI31: 110000000000 | AJ31: =$AB$21*SIN($AB$19*AH31) -> 0 | AM31: 2 | AN31: 0.1256637061 | AO31: 40148824.73 | AP31: 39832239.26 | AQ31: 5031982.028 | AS31: 3745.671673 | AT31: 2528522.681 | AU31: 675.0518735 | AV31: =SUM(AU$29:$AU31) -> 2018.202554 | AW31: 0 | AX31: 40056135.97 | AY31: 0
AG32: 3 | AH32: 0 | AI32: 110000000000 | AJ32: =$AB$21*SIN($AB$19*AH32) -> 0 | AM32: 3 | AN32: 0.1884955592 | AO32: 40264944.95 | AP32: 39551742.08 | AQ32: 7544898.317 | AS32: 3738.016979 | AT32: 2539860.545 | AU32: 679.4673646 | AV32: =SUM(AU$29:$AU32) -> 2697.669918 | AW32: 0 | AX32: 40056135.97 | AY32: 0
AC33: complete geostat. Baan | AG33: 4 | AH33: 0 | AI33: 110000000000 | AJ33: =$AB$21*SIN($AB$19*AH33) -> 0 | AM33: 4 | AN33: 0.2513274123 | AO33: 40427997.12 | AP33: 39157877.25 | AQ33: 10054034.04 | AS33: 3727.316488 | AT33: 2555033.779 | AU33: 685.4888194 | AV33: =SUM(AU$29:$AU33) -> 3383.158738 | AW33: 0 | AX33: 40056135.97 | AY33: 0
AG34: 5 | AH34: 0 | AI34: 110000000000 | AJ34: =$AB$21*SIN($AB$19*AH34) -> 0 | AM34: 5 | AN34: 0.3141592654 | AO34: 40638464.77 | AP34: 38649476.73 | AQ34: 12557976.24 | AS34: 3713.586319 | AT34: 2574090.097 | AU34: 693.154777 | AV34: =SUM(AU$29:$AU34) -> 4076.313515 | AW34: 0 | AX34: 40056135.97 | AY34: 0
AG35: 6 | AH35: 0 | AI35: 110000000000 | AJ35: 0 | AM35: 6 | AN35: 0.3769911184 | AO35: 40896969.02 | AP35: 38025040.14 | AQ35: 15055178.43 | AS35: 3696.847249 | AT35: 2597088.674 | AU35: 702.5144669 | AV35: =SUM(AU$29:$AU35) -> 4778.827981 | AW35: 0 | AX35: 40056135.97 | AY35: 0
AA36: straal = | AB36: =AB14 -> 6378000 | AG36: 7 | AH36: 0 | AI36: 110000000000 | AJ36: 0 | AM36: 7 | AN36: 0.4398229715 | AO36: 41204267.96 | AP36: 37282736.32 | AQ36: 17543924.02 | AS36: 3677.124751 | AT36: 2624099.776 | AU36: 713.6281618 | AV36: =SUM(AU$29:$AU36) -> 5492.456143 | AW36: 0 | AX36: 40056135.97 | AY36: 0
AG37: 8 | AH37: 0 | AI37: 110000000000 | AJ37: 0 | AM37: 8 | AN37: 0.5026548246 | AO37: 41561255.53 | AP37: 36420405.85 | AQ37: 20022287.55 | AS37: 3654.449051 | AT37: 2655204.273 | AU37: 726.5675991 | AV37: =SUM(AU$29:$AU37) -> 6219.023742 | AW37: 0 | AX37: 40056135.97 | AY37: 0
AA38: aardoppervlak | AG38: 9 | AH38: 0 | AI38: 110000000000 | AJ38: 0 | AM38: 9 | AN38: 0.5654866776 | AO38: 41968959.98 | AP38: 35435564.91 | AQ38: 22488093.31 | AS38: 3628.85519 | AT38: 2690492.989 | AU38: 741.4164655 | AV38: =SUM(AU$29:$AU38) -> 6960.440208 | AW38: 0 | AX38: 40056135.97 | AY38: 0
AA39: dhoek = | AB39: =10/180*PI() -> 0.1745329252 | AG39: 10 | AH39: 0 | AI39: 110000000000 | AJ39: 0 | AM39: 10 | AN39: 0.6283185307 | AO39: 42428541.46 | AP39: 34325411.09 | AQ39: 24938870.95 | AS39: 3600.3831 | AT39: 2730065.868 | AU39: 758.2709374 | AV39: =SUM(AU$29:$AU39) -> 7718.711145 | AW39: 0 | AX39: 40056135.97 | AY39: 0
AA40: x | AB40: y | AC40: x | AD40: y | AG40: 11 | AH40: 0 | AI40: 110000000000 | AJ40: 0 | AM40: 11 | AN40: 0.6911503838 | AO40: 42941288.62 | AP40: 33086831.54 | AQ40: 27371807.52 | AS40: 3569.077699 | AT40: 2774030.895 | AU40: 777.2402646 | AV40: =SUM(AU$29:$AU40) -> 8495.95141 | AW40: 0 | AX40: 40056135.97 | AY40: 0
U41: Fg, max = | V41: =AB7*AB9*AB11/AO28^2 -> 248.5235649 | W41: N | Z41: 0 | AA41: =$AB$36*COS($AB$15*$U$1+Z41*$AB$39) -> 6378000 | AB41: =$AB$36*SIN($AB$15*$U$1+Z41*$AB$39) -> 0 | AC41: =IF($AI$26=1,$AB$21*COS(Z41*$AB$39),10000000000) -> 10000000000 | AD41: =$AB$21*SIN(Z41*$AB$39) -> 0 | AG41: 12 | AH41: 0 | AI41: 110000000000 | AJ41: 0 | AM41: 12 | AN41: 0.7539822369 | AO41: 43508613.86 | AP41: 31716414.52 | AQ41: 29783695.7 | AS41: 3534.989 | AT41: 2822502.728 | AU41: 798.4473863 | AV41: =SUM(AU$29:$AU41) -> 9294.398796 | AW41: 0 | AX41: 40056135.97 | AY41: 0
U42: a = | V42: =IF(BA29>=0,ATAN(BB29/BA29),ATAN(BB29/BA29)+PI()) -> 0 | Z42: 1 | AA42: =$AB$36*COS($AB$15*$U$1+Z42*$AB$39) -> 6281103.849 | AB42: =$AB$36*SIN($AB$15*$U$1+Z42*$AB$39) -> 1107528.077 | AC42: =IF($AI$26=1,$AB$21*COS(Z42*$AB$39),10000000000) -> 10000000000 | AD42: =$AB$21*SIN(Z42*$AB$39) -> 7321763.175 | AG42: 13 | AH42: 0 | AI42: 110000000000 | AJ42: 0 | AM42: 13 | AN42: 0.8168140899 | AO42: 44132046.86 | AP42: 30210464.96 | AQ42: 32170877.62 | AS42: 3498.172239 | AT42: 2875600.971 | AU42: 822.0295555 | AV42: =SUM(AU$29:$AU42) -> 10116.42835 | AW42: 0 | AX42: 40056135.97 | AY42: 0
U43: 1 hokje = | V43: =10000000 -> 10000000 | W43: m | Z43: 2 | AA43: 5993359.535 | AB43: 2181404.474 | AC43: =IF($AI$26=1,$AB$21*COS(Z43*$AB$39),10000000000) -> 10000000000 | AD43: =$AB$21*SIN(Z43*$AB$39) -> 14421058.28 | AG43: 14 | AH43: 0 | AI43: 110000000000 | AJ43: 0 | AM43: 14 | AN43: 0.879645943 | AO43: 44813225.97 | AP43: 28565025.29 | AQ43: 34529184.06 | AS43: 3458.688031 | AT43: 2933448.031 | AU43: 848.1389488 | AV43: =SUM(AU$29:$AU43) -> 10964.5673 | AW43: 0 | AX43: 40056135.97 | AY43: 0
U44: 1 hokje = | V44: =V43/V48 -> 100 | W44: N | Z44: 3 | AA44: 5523510.025 | AB44: 3189000 | AC44: =IF($AI$26=1,$AB$21*COS(Z44*$AB$39),10000000000) -> 10000000000 | AD44: =$AB$21*SIN(Z44*$AB$39) -> 21082176.83 | AG44: 15 | AH44: 0 | AI44: 110000000000 | AJ44: 0 | AM44: 15 | AN44: 0.9424777961 | AO44: 45553886.87 | AP44: 26775902.88 | AQ44: 36853868.63 | AS44: 3416.602541 | AT44: 2996166.452 | AU44: 876.9432255 | AV44: =SUM(AU$29:$AU44) -> 11841.51053 | AW44: 0 | AX44: 40056135.97 | AY44: 0
U45: Fg(t) = | V45: =V49/V43 -> 2.485235649 | W45: hokjes | Z45: 4 | AA45: 4885831.458 | AB45: 4099699.375 | AC45: =IF($AI$26=1,$AB$21*COS(Z45*$AB$39),10000000000) -> 10000000000 | AD45: =$AB$21*SIN(Z45*$AB$39) -> 27102724.1 | AG45: 16 | AH45: 0 | AI45: 110000000000 | AJ45: 0 | AM45: 16 | AN45: 1.005309649 | AO45: 46355847.88 | AP45: 24838705.4 | AQ45: 39139536.88 | AS45: 3371.987698 | AT45: 3063875.663 | AU45: 908.6259907 | AV45: =SUM(AU$29:$AU45) -> 12750.13652 | AW45: 0 | AX45: 40056135.97 | AY45: 0
U46: Fmax in hokjes: | V46: =V41*V48/V43 -> 2.485235649 | W46: hokjes | Z46: 5 | AA46: 4099699.375 | AB46: 4885831.458 | AC46: =IF($AI$26=1,$AB$21*COS(Z46*$AB$39),10000000000) -> 10000000000 | AD46: =$AB$21*SIN(Z46*$AB$39) -> 32299768.81 | AG46: 17 | AH46: 0 | AI46: 110000000000 | AJ46: 0 | AM46: 17 | AN46: 1.068141502 | AO46: 47220991.29 | AP46: 22748886.05 | AQ46: 41380070.11 | AS46: 3324.921432 | AT46: 3136688.006 | AU46: 943.3871058 | AV46: =SUM(AU$29:$AU46) -> 13693.52362 | AW46: 0 | AX46: 40056135.97 | AY46: 0
U47: schuifbalk 1-11 | V47: 7 | Z47: 6 | AA47: 3189000 | AB47: 5523510.025 | AC47: 10000000000 | AD47: 36515401.4 | AG47: 18 | AH47: 0 | AI47: 110000000000 | AJ47: 0 | AM47: 18 | AN47: 1.130973355 | AO47: 48151239.68 | AP47: 20501800.72 | AQ47: 43568544.27 | AS47: 3275.487955 | AT47: 3214703.975 | AU47: 981.4427711 | AV47: =SUM(AU$29:$AU47) -> 14674.96639 | AW47: 0 | AX47: 40056135.97 | AY47: 0
U48: schaal = | V48: =V71 -> 100000 | W48: m/N | Z48: 7 | AA48: 2181404.474 | AB48: 5993359.535 | AC48: 10000000000 | AD48: 39621531.99 | AG48: 19 | AH48: 0 | AI48: 110000000000 | AJ48: 0 | AM48: 19 | AN48: 1.193805208 | AO48: 49148526.37 | AP48: 18092779.29 | AQ48: 45697144.14 | AS48: 3223.778089 | AT48: 3298006.515 | AU48: 1023.02529 | AV48: =SUM(AU$29:$AU48) -> 15697.99168 | AW48: 0 | AX48: 40056135.97 | AY48: 0
U49: huidige pijllengte = | V49: =BD29*V48 -> 24852356.49 | W49: m | Z49: 8 | AA49: 1107528.077 | AB49: 6281103.849 | AC49: 10000000000 | AD49: 41523782.38 | AG49: 20 | AH49: 0 | AI49: 110000000000 | AJ49: 0 | AM49: 20 | AN49: 1.256637061 | AO49: 50214758.94 | AP49: 15517213.88 | AQ49: 47757073.7 | AS49: 3169.889642 | AT49: 3386654.3 | AU49: 1068.382399 | AV49: =SUM(AU$29:$AU49) -> 16766.37408 | AW49: 0 | AX49: 40056135.97 | AY49: 0
U50: pijlpuntlengte | V50: =5000000 -> 5000000 | Z50: 9 | AA50: 3.906998423e-10 | AB50: 6378000 | AC50: 10000000000 | AD50: 42164353.65 | AG50: 21 | AH50: 0 | AI50: 110000000000 | AJ50: 0 | AM50: 21 | AN50: 1.319468915 | AO50: 51351774.42 | AP50: 12770666.99 | AQ50: 49738464 | AS50: 3113.927844 | AT50: 3480673.879 | AU50: 1117.776022 | AV50: =SUM(AU$29:$AU50) -> 17884.1501 | AW50: 0 | AX50: 40056135.97 | AY50: 0
U51: pijlpuntbreedte | V51: =0.5*10^7 -> 5000000 | Z51: 10 | AA51: -1107528.077 | AB51: 6281103.849 | AC51: 10000000000 | AD51: 41523782.38 | AG51: 22 | AH51: 0 | AI51: 110000000000 | AJ51: 0 | AM51: 22 | AN51: 1.382300768 | AO51: 52561285.01 | AP51: 9849002.682 | AQ51: 51630280.15 | AS51: 3056.005861 | AT51: 3580050.62 | AU51: 1171.480286 | AV51: =SUM(AU$29:$AU51) -> 19055.63039 | AW51: 0 | AX51: 40056135.97 | AY51: 0
U52: pijlpuntschuine | V52: =SQRT(V50^2+(V51/2)^2) -> 5590169.944 | Z52: 11 | AA52: -2181404.474 | AB52: 5993359.535 | AC52: 10000000000 | AD52: 39621531.99 | AG52: 23 | AH52: 0 | AI52: 110000000000 | AJ52: 0 | AM52: 23 | AN52: 1.445132621 | AO52: 53844812.69 | AP52: 6748544.486 | AQ52: 53420230.26 | AS52: 2996.245375 | AT52: 3684718.406 | AU52: 1229.778588 | AV52: =SUM(AU$29:$AU52) -> 20285.40898 | AW52: 0 | AX52: 40056135.97 | AY52: 0
U53: halve tophoek | V53: =ATAN(V51/2/V50) -> 0.463647609 | Z53: 12 | AA53: -3189000 | AB53: 5523510.025 | AC53: 10000000000 | AD53: 36515401.4 | AG53: 24 | AH53: 0 | AI53: 110000000000 | AJ53: 0 | AM53: 24 | AN53: 1.507964474 | AO53: 55203611.4 | AP53: 3466263.44 | AQ53: 55094679.69 | AS53: 2934.777265 | AT53: 3794548.117 | AU53: 1292.95949 | AV53: =SUM(AU$29:$AU53) -> 21578.36847 | AW53: 0 | AX53: 40056135.97 | AY53: 0
U54: x | V54: y | Z54: 13 | AA54: -4099699.375 | AB54: 4885831.458 | AC54: 10000000000 | AD54: 32299768.81 | AG54: 25 | AH54: 0 | AI54: 110000000000 | AJ54: 0 | AM54: 25 | AN54: 1.570796327 | AO54: 56638575.14 | AP54: -9.1067569e-09 | AQ54: 56638575.14 | AS54: 2871.74239 | AT54: 3909335.016 | AU54: 1361.311178 | AV54: =SUM(AU$29:$AU54) -> 22939.67965 | AW54: 0 | AX54: 40056135.97 | AY54: 0
U55: =BA29+V22 -> 1.004005614e+10 | V55: =BB29 -> 0 | Z55: 14 | AA55: -4885831.458 | AB55: 4099699.375 | AC55: 10000000000 | AD55: 27102724.1 | AG55: 26 | AH55: 0 | AI55: 110000000000 | AJ55: 0 | AM55: 26 | AN55: 1.63362818 | AO55: 58150130.76 | AP55: -3651276.921 | AQ55: 58035384.76 | AS55: 2807.292489 | AT55: 4028785.263 | AU55: 1435.114182 | AV55: =SUM(AU$29:$AU55) -> 24374.79383 | AW55: 0 | AX55: 40056135.97 | AY55: 0
U56: =U55-$V$49*COS($V$42) -> 1.001520378e+10 | V56: =V55-$V$49*SIN($V$42) -> 0 | Z56: 15 | AA56: -5523510.025 | AB56: 3189000 | AC56: 10000000000 | AD56: 21082176.83 | AG56: 27 | AH56: 0 | AI56: 110000000000 | AJ56: 0 | AM56: 27 | AN56: 1.696460033 | AO56: 59738114.2 | AP56: -7487171.02 | AQ56: 59267061.33 | AS56: 2741.591211 | AT56: 4152501.981 | AU56: 1514.632074 | AV56: =SUM(AU$29:$AU56) -> 25889.4259 | AW56: 0 | AX56: 40056135.97 | AY56: 0
U57: =$U$56+$V$52*COS($V$42-$V$53) -> 1.002020378e+10 | V57: =V56+$V$52*SIN(V42-$V$53) -> -2500000 | Z57: 16 | AA57: -5993359.535 | AB57: 2181404.474 | AC57: 10000000000 | AD57: 14421058.28 | AG57: 28 | AH57: 0 | AI57: 110000000000 | AJ57: 0 | AM57: 28 | AN57: 1.759291886 | AO57: 61401629.51 | AP57: -11505518.05 | AQ57: 60314037.84 | AS57: 2674.8153 | AT57: 4279971.487 | AU57: 1600.099822 | AV57: =SUM(AU$29:$AU57) -> 27489.52572 | AW57: 0 | AX57: 40056135.97 | AY57: 0
U58: =U56 -> 1.001520378e+10 | V58: =V56 -> 0 | Z58: 17 | AA58: -6281103.849 | AB58: 1107528.077 | AC58: 10000000000 | AD58: 7321763.175 | AG58: 29 | AH58: 0 | AI58: 110000000000 | AJ58: 0 | AM58: 29 | AN58: 1.822123739 | AO58: 63138890.58 | AP58: -15702003.57 | AQ58: 61155266.23 | AS58: 2607.15594 | AT58: 4410550.562 | AU58: 1691.709535 | AV58: =SUM(AU$29:$AU58) -> 29181.23526 | AW58: 0 | AX58: 40056135.97 | AY58: 0
U59: =U56+$V$52*COS(V42+$V$53) -> 1.002020378e+10 | V59: =V56+$V$52*SIN(V42+$V$53) -> 2500000 | Z59: 18 | AA59: -6378000 | AB59: 7.813996845e-10 | AC59: 10000000000 | AD59: 5.165759273e-09 | AG59: 30 | AH59: 0 | AI59: 110000000000 | AJ59: 0 | AM59: 30 | AN59: 1.884955592 | AO59: 64947046.57 | AP59: -20069741.13 | AQ59: 61768311.86 | AS59: 2538.820272 | AT59: 4543455.957 | AU59: 1789.593382 | AV59: =SUM(AU$29:$AU59) -> 30970.82864 | AW59: 0 | AX59: 40056135.97 | AY59: 0
U60: 1 | V60: 100 | Z60: 19 | AA60: -6281103.849 | AB60: -1107528.077 | AC60: 10000000000 | AD60: -7321763.175 | AG60: 31 | AH60: 0 | AI60: 110000000000 | AJ60: 0 | AM60: 31 | AN60: 1.947787445 | AO60: 66821993.12 | AP60: -24598816.33 | AQ60: 62129517.95 | AS60: 2470.033106 | AT60: 4677757.633 | AU60: 1893.803618 | AV60: =SUM(AU$29:$AU60) -> 32864.63226 | AW60: 0 | AX60: 40056135.97 | AY60: 0
U61: 2 | V61: 500 | Z61: 20 | AA61: -5993359.535 | AB61: -2181404.474 | AC61: 10000000000 | AD61: -14421058.28 | AG61: 32 | AH61: =MIN(AG61*$AH$25,$U$1) -> 0 | AI61: 110000000000 | AJ61: 0 | AM61: 32 | AN61: 2.010619298 | AO61: 68758173.47 | AP61: -29275806.39 | AQ61: 62214255.43 | AS61: =SQRT(2*($AP$14+$AP$13/AO61)/$AB$9) -> 2401.03881 | AT61: =SQRT((AP62-AP61)^2+(AQ62-AQ61)^2) -> 4812377.563 | AU61: =AT61/AS61 -> 2004.289786 | AV61: =SUM(AU$29:$AU61) -> 34868.92205 | AW61: 0 | AX61: 40056135.97 | AY61: 0
U62: 3 | V62: 1000 | Z62: 21 | AA62: -5523510.025 | AB62: -3189000 | AC62: 10000000000 | AD62: -21082176.83 | AG62: 33 | AH62: 0 | AI62: 110000000000 | AJ62: 0 | AM62: 33 | AN62: 2.073451151 | AO62: 70748375.46 | AP62: -34083289.81 | AQ62: 61997274.02 | AS62: 2332.103382 | AT62: 4946096.221 | AU62: 2120.873482 | AV62: =SUM(AU$29:$AU62) -> 36989.79553 | AW62: 0 | AX62: =IF(AV62>$U$1,AX61,AP62) -> 40056135.97 | AY62: =IF(AV62>$U$1,AY61,AQ62) -> 0
U63: 4 | V63: 5000 | Z63: 22 | AA63: -4885831.458 | AB63: -4099699.375 | AC63: 10000000000 | AD63: -27102724.1 | AG63: 34 | AH63: 0 | AI63: 110000000000 | AJ63: 0 | AM63: 34 | AN63: 2.136283004 | AO63: 72783533.23 | AP63: -38999367.34 | AQ63: 61453169.62 | AS63: 2263.516662 | AT63: 5077568.956 | AU63: 2243.221374 | AV63: =SUM(AU$29:$AU63) -> 39233.0169 | AW63: 0 | AX63: 40056135.97 | AY63: 0
U64: 5 | V64: 10000 | Z64: 23 | AA64: -4099699.375 | AB64: -4885831.458 | AC64: 10000000000 | AD64: -32299768.81 | AG64: 35 | AH64: 0 | AI64: 110000000000 | AJ64: 0 | AM64: 35 | AN64: 2.199114858 | AO64: 74852545.16 | AP64: -43997222.14 | AQ64: 60556981.11 | AS64: 2195.594633 | AT64: 5205354.417 | AU64: 2370.817609 | AV64: =SUM(AU$29:$AU64) -> 41603.83451 | AW64: 0 | AX64: 40056135.97 | AY64: 0
U65: 6 | V65: 50000 | Z65: 24 | AA65: -3189000 | AB65: -5523510.025 | AC65: 10000000000 | AD65: -36515401.4 | AG65: 36 | AH65: 0 | AI65: 110000000000 | AJ65: 0 | AM65: 36 | AN65: 2.261946711 | AO65: 76942122.76 | AP65: -49044754.87 | AQ65: 59284924.52 | AS65: 2128.681709 | AT65: 5327956.67 | AU65: 2502.937215 | AV65: =SUM(AU$29:$AU65) -> 44106.77173 | AW65: 0 | AX65: 40056135.97 | AY65: 0
U66: 7 | V66: 100000 | Z66: 25 | AA66: -2181404.474 | AB66: -5993359.535 | AC66: 10000000000 | AD66: -39621531.99 | AG66: 37 | AH66: 0 | AI66: 110000000000 | AJ66: 0 | AM66: 37 | AN66: 2.324778564 | AO66: 79036688.24 | AP66: -54104336.2 | AQ66: 57615266.14 | AS66: 2063.152854 | AT66: 5443881.755 | AU66: 2638.622604 | AV66: =SUM(AU$29:$AU66) -> 46745.39433 | AW66: 0 | AX66: 40056135.97 | AY66: 0
U67: 8 | V67: 500000 | Z67: 26 | AA67: -1107528.077 | AB67: -6281103.849 | AC67: 10000000000 | AD67: -41523782.38 | AG67: 38 | AH67: 0 | AI67: 110000000000 | AJ67: 0 | AM67: 38 | AN67: 2.387610417 | AO67: 81118340.89 | AP67: -59132725.62 | AQ67: 55529325.5 | AS67: 1999.415286 | AT67: 5551707.844 | AU67: 2776.6657 | AV67: =SUM(AU$29:$AU67) -> 49522.06003 | AW67: 0 | AX67: 40056135.97 | AY67: 0
U68: 9 | V68: 1000000 | Z68: 27 | AA68: -1.172099527e-09 | AB68: -6378000 | AC68: 10000000000 | AD68: -42164353.65 | AG68: 39 | AH68: 0 | AI68: 110000000000 | AJ68: 0 | AM68: 39 | AN68: 2.45044227 | AO68: 83166913.82 | AP68: -64081208.46 | AQ68: 53012586.02 | AS68: 1937.909464 | AT68: 5650165.969 | AU68: 2915.598521 | AV68: =SUM(AU$29:$AU68) -> 52437.65855 | AW68: 0 | AX68: 40056135.97 | AY68: 0
U69: 10 | V69: 5000000 | Z69: 28 | AA69: 1107528.077 | AB69: -6281103.849 | AC69: 10000000000 | AD69: -41523782.38 | AG69: 40 | AH69: 0 | AI69: 110000000000 | AJ69: 0 | AM69: 40 | AN69: 2.513274123 | AO69: 85160142.15 | AP69: -68896002.24 | AQ69: 50055875.64 | AS69: 1879.108897 | AT69: 5738225.544 | AU69: 3053.695053 | AV69: =SUM(AU$29:$AU69) -> 55491.3536 | AW69: 0 | AX69: 40056135.97 | AY69: 0
U70: 11 | V70: 10000000 | Z70: 29 | AA70: 2181404.474 | AB70: -5993359.535 | AC70: 10000000000 | AD70: -39621531.99 | AG70: 41 | AH70: 0 | AI70: 110000000000 | AJ70: 0 | AM70: 41 | AN70: 2.576105976 | AO70: 87073961.28 | AP70: -73518977.09 | AQ70: 46656561.6 | AS70: 1823.518227 | AT70: 5815175.861 | AU70: 3188.986967 | AV70: =SUM(AU$29:$AU70) -> 58680.34057 | AW70: 0 | AX70: 40056135.97 | AY70: 0
U71: schaal = | V71: =VLOOKUP(V47,U60:V70,2) -> 100000 | W71: m/N | Z71: 30 | AA71: 3189000 | AB71: -5523510.025 | AC71: 10000000000 | AD71: -36515401.4 | AG71: 42 | AH71: 0 | AI71: 110000000000 | AJ71: 0 | AM71: 42 | AN71: 2.638937829 | AO71: 88882947.83 | AP71: -77888720.93 | AQ71: 42819686.68 | AS71: 1771.668944 | AT71: 5880691.961 | AU71: 3319.295052 | AV71: =SUM(AU$29:$AU71) -> 61999.63562 | AW71: 0 | AX71: 40056135.97 | AY71: 0
Z72: 31 | AA72: 4099699.375 | AB72: -4885831.458 | AC72: 10000000000 | AD72: -32299768.81 | AG72: 43 | AH72: 0 | AI72: 110000000000 | AJ72: 0 | AM72: 43 | AN72: 2.701769682 | AO72: 90560907.23 | AP72: -81941958.75 | AQ72: 38558958.92 | AS72: 1724.112027 | AT72: 5934871.649 | AU72: 3442.277274 | AV72: =SUM(AU$29:$AU72) -> 65441.9129 | AW72: 0 | AX72: 40056135.97 | AY72: 0
Z73: 32 | AA73: 4885831.458 | AB73: -4099699.375 | AC73: 10000000000 | AD73: -27102724.1 | AG73: 44 | AH73: 0 | AI73: 110000000000 | AJ73: 0 | AM73: 44 | AN73: 2.764601535 | AO73: 92081599.53 | AP73: -85615306.03 | AQ73: 33897497.64 | AS73: 1681.406891 | AT73: 5978230.834 | AU73: 3555.493239 | AV73: =SUM(AU$29:$AU73) -> 68997.40614 | AW73: 0 | AX73: 40056135.97 | AY73: 0
Z74: 33 | AA74: 5523510.025 | AB74: -3189000 | AC74: 10000000000 | AD74: -21082176.83 | AG74: 45 | AH74: 0 | AI74: 110000000000 | AJ74: 0 | AM74: 45 | AN74: 2.827433388 | AO74: 93419580.86 | AP74: -88847301.13 | AQ74: 28868238.09 | AS74: 1644.10625 | AT74: 6011647.876 | AU74: 3656.483804 | AV74: =SUM(AU$29:$AU74) -> 72653.88994 | AW74: 0 | AX74: 40056135.97 | AY74: 0
Z75: 34 | AA75: 5993359.535 | AB75: -2181404.474 | AC75: 10000000000 | AD75: -14421058.28 | AG75: 46 | AH75: 0 | AI75: 110000000000 | AJ75: 0 | AM75: 46 | AN75: 2.890265241 | AO75: 94551122.21 | AP75: -91580624.84 | AQ75: 23513907.91 | AS75: 1612.736963 | AT75: 6036254.657 | AU75: 3742.863712 | AV75: =SUM(AU$29:$AU75) -> 76396.75365 | AW75: 0 | AX75: 40056135.97 | AY75: 0
Z76: 35 | AA76: 6281103.849 | AB76: -1107528.077 | AC76: 10000000000 | AD76: -7321763.175 | AG76: 47 | AH76: 0 | AI76: 110000000000 | AJ76: 0 | AM76: 47 | AN76: 2.953097094 | AO76: 95455153.16 | AP76: -93764379.96 | AQ76: 17886512.08 | AS76: 1587.777623 | AT76: 6053282.16 | AU76: 3812.424404 | AV76: =SUM(AU$29:$AU76) -> 80209.17806 | AW76: 0 | AX76: 40056135.97 | AY76: 0
Z77: 36 | AA77: 6378000 | AB77: -1.562799369e-09 | AC77: 10000000000 | AD77: -1.033151855e-08 | AG77: 48 | AH77: 0 | AI77: 110000000000 | AJ77: 0 | AM77: 48 | AN77: 3.015928947 | AO77: 96114167.24 | AP77: -95356278.33 | AQ77: 12046299.37 | AS77: 1569.634489 | AT77: 6063879.664 | AU77: 3863.243135 | AV77: =SUM(AU$29:$AU77) -> 84072.42119 | AW77: 0 | AX77: 40056135.97 | AY77: 0
AG78: 49 | AH78: 0 | AI78: 110000000000 | AJ78: 0 | AM78: 49 | AN78: 3.078760801 | AO78: 96515020.83 | AP78: -96324570.48 | AQ78: 6060228.3 | AS78: 1558.618149 | AT78: 6068936.087 | AU78: 3893.792773 | AV78: =SUM(AU$29:$AU78) -> 87966.21396 | AW78: 0 | AX78: 40056135.97 | AY78: 0
AG79: 50 | AH79: =MIN(AG79*$AH$25,$U$1) -> 0 | AI79: 110000000000 | AJ79: 0 | AM79: 50 | AN79: 3.141592654 | AO79: 96649559.98 | AP79: -96649559.98 | AQ79: -3.108002082e-08 | AS79: 1554.923827 | AT79: 6068936.087 | AU79: 3903.043984 | AV79: =SUM(AU$29:$AU79) -> 91869.25795 | AW79: 0 | AX79: 40056135.97 | AY79: 0
AM80: 51 | AN80: 3.204424507 | AO80: 96515020.83 | AP80: -96324570.48 | AQ80: -6060228.3 | AS80: 1558.618149 | AT80: 6063879.664 | AU80: 3890.548603 | AV80: =SUM(AU$29:$AU80) -> 95759.80655 | AW80: 0 | AX80: 40056135.97 | AY80: 0
AM81: 52 | AN81: 3.26725636 | AO81: 96114167.24 | AP81: -95356278.33 | AQ81: -12046299.37 | AS81: 1569.634489 | AT81: 6053282.16 | AU81: 3856.49156 | AV81: =SUM(AU$29:$AU81) -> 99616.29811 | AW81: 0 | AX81: 40056135.97 | AY81: 0
AM82: 53 | AN82: 3.330088213 | AO82: 95455153.16 | AP82: -93764379.96 | AQ82: -17886512.08 | AS82: 1587.777623 | AT82: 6036254.657 | AU82: 3801.700294 | AV82: =SUM(AU$29:$AU82) -> 103417.9984 | AW82: 0 | AX82: 40056135.97 | AY82: 0
AM83: 54 | AN83: 3.392920066 | AO83: 94551122.21 | AP83: -91580624.84 | AQ83: -23513907.91 | AS83: 1612.736963 | AT83: 6011647.876 | AU83: 3727.605935 | AV83: =SUM(AU$29:$AU83) -> 107145.6043 | AW83: 0 | AX83: 40056135.97 | AY83: 0
AM84: 55 | AN84: 3.455751919 | AO84: 93419580.86 | AP84: -88847301.13 | AQ84: -28868238.09 | AS84: 1644.10625 | AT84: 5978230.834 | AU84: 3636.158449 | AV84: =SUM(AU$29:$AU84) -> 110781.7628 | AW84: 0 | AX84: 40056135.97 | AY84: 0
AM85: 56 | AN85: 3.518583772 | AO85: 92081599.53 | AP85: -85615306.03 | AQ85: -33897497.64 | AS85: 1681.406891 | AT85: 5934871.649 | AU85: 3529.705796 | AV85: =SUM(AU$29:$AU85) -> 114311.4686 | AW85: 0 | AX85: 40056135.97 | AY85: 0
AM86: 57 | AN86: 3.581415625 | AO86: 90560907.23 | AP86: -81941958.75 | AQ86: -38558958.92 | AS86: 1724.112027 | AT86: 5880691.961 | AU86: 3410.852583 | AV86: =SUM(AU$29:$AU86) -> 117722.3212 | AW86: 0 | AX86: 40056135.97 | AY86: 0
AM87: 58 | AN87: 3.644247478 | AO87: 88882947.83 | AP87: -77888720.93 | AQ87: -42819686.68 | AS87: 1771.668944 | AT87: 5815175.861 | AU87: 3282.315175 | AV87: =SUM(AU$29:$AU87) -> 121004.6363 | AW87: 0 | AX87: 40056135.97 | AY87: 0
AM88: 59 | AN88: 3.707079331 | AO88: 87073961.28 | AP88: -73518977.09 | AQ88: -46656561.6 | AS88: 1823.518227 | AT88: 5738225.544 | AU88: 3146.788147 | AV88: =SUM(AU$29:$AU88) -> 124151.4245 | AW88: 0 | AX88: 40056135.97 | AY88: 0
AM89: 60 | AN89: 3.769911184 | AO89: 85160142.15 | AP89: -68896002.24 | AQ89: -50055875.64 | AS89: 1879.108897 | AT89: 5650165.969 | AU89: 3006.832641 | AV89: =SUM(AU$29:$AU89) -> 127158.2571 | AW89: 0 | AX89: 40056135.97 | AY89: 0
AM90: 61 | AN90: 3.832743037 | AO90: 83166913.82 | AP90: -64081208.46 | AQ90: -53012586.02 | AS90: 1937.909464 | AT90: 5551707.844 | AU90: 2864.792162 | AV90: =SUM(AU$29:$AU90) -> 130023.0493 | AW90: 0 | AX90: 40056135.97 | AY90: 0
AM91: 62 | AN91: 3.89557489 | AO91: 81118340.89 | AP91: -59132725.62 | AQ91: -55529325.5 | AS91: 1999.415286 | AT91: 5443881.755 | AU91: 2722.736889 | AV91: =SUM(AU$29:$AU91) -> 132745.7862 | AW91: 0 | AX91: 40056135.97 | AY91: 0
AM92: 63 | AN92: 3.958406744 | AO92: 79036688.24 | AP92: -54104336.2 | AQ92: -57615266.14 | AS92: 2063.152854 | AT92: 5327956.67 | AU92: 2582.434288 | AV92: =SUM(AU$29:$AU92) -> 135328.2205 | AW92: 0 | AX92: 40056135.97 | AY92: 0
AM93: 64 | AN93: 4.021238597 | AO93: 76942122.76 | AP93: -49044754.87 | AQ93: -59284924.52 | AS93: =SQRT(2*($AP$14+$AP$13/AO93)/$AB$9) -> 2128.681709 | AT93: =SQRT((AP94-AP93)^2+(AQ94-AQ93)^2) -> 5205354.417 | AU93: =AT93/AS93 -> 2445.341826 | AV93: =SUM(AU$29:$AU93) -> 137773.5623 | AW93: 0 | AX93: 40056135.97 | AY93: 0
AM94: 65 | AN94: =IF(ISERROR($AQ$25),MIN(PI()/2*1.2,AM94*$AO$24),AM94*$AO$24) -> 4.08407045 | AO94: =$AO$16/(1+$AP$15*COS(AN94-$AN$26)) -> 74852545.16 | AP94: =AO94*COS(AN94) -> -43997222.14 | AQ94: =AO94*SIN(AN94) -> -60556981.11 | AS94: 2195.594633 | AT94: 5077568.956 | AU94: 2312.616765 | AV94: =SUM(AU$29:$AU94) -> 140086.1791 | AW94: =IF(AV94>$U$1,$U$1,AV94) -> 0 | AX94: =IF(AV94>$U$1,AX93,AP94) -> 40056135.97 | AY94: =IF(AV94>$U$1,AY93,AQ94) -> 0
AM95: 66 | AN95: 4.146902303 | AO95: 72783533.23 | AP95: -38999367.34 | AQ95: -61453169.62 | AS95: 2263.516662 | AT95: 4946096.221 | AU95: 2185.137977 | AV95: =SUM(AU$29:$AU95) -> 142271.317 | AW95: 0 | AX95: 40056135.97 | AY95: 0
AM96: 67 | AN96: 4.209734156 | AO96: 70748375.46 | AP96: -34083289.81 | AQ96: -61997274.02 | AS96: 2332.103382 | AT96: 4812377.563 | AU96: 2063.535261 | AV96: =SUM(AU$29:$AU96) -> 144334.8523 | AW96: 0 | AX96: 40056135.97 | AY96: 0
AM97: 68 | AN97: 4.272566009 | AO97: 68758173.47 | AP97: -29275806.39 | AQ97: -62214255.43 | AS97: 2401.03881 | AT97: 4677757.633 | AU97: 1948.222416 | AV97: =SUM(AU$29:$AU97) -> 146283.0747 | AW97: 0 | AX97: 40056135.97 | AY97: 0
AM98: 69 | AN98: 4.335397862 | AO98: 66821993.12 | AP98: -24598816.33 | AQ98: -62129517.95 | AS98: 2470.033106 | AT98: 4543455.957 | AU98: 1839.431199 | AV98: =SUM(AU$29:$AU98) -> 148122.5059 | AW98: 0 | AX98: 40056135.97 | AY98: 0
AM99: 70 | AN99: 4.398229715 | AO99: 64947046.57 | AP99: -20069741.13 | AQ99: -61768311.86 | AS99: 2538.820272 | AT99: 4410550.562 | AU99: 1737.244109 | AV99: =SUM(AU$29:$AU99) -> 149859.75 | AW99: 0 | AX99: 40056135.97 | AY99: 0
AM100: 71 | AN100: 4.461061568 | AO100: 63138890.58 | AP100: -15702003.57 | AQ100: -61155266.23 | AS100: 2607.15594 | AT100: 4279971.487 | AU100: 1641.624661 | AV100: =SUM(AU$29:$AU100) -> 151501.3747 | AW100: 0 | AX100: 40056135.97 | AY100: 0
AM101: 72 | AN101: 4.523893421 | AO101: 61401629.51 | AP101: -11505518.05 | AQ101: -60314037.84 | AS101: 2674.8153 | AT101: 4152501.981 | AU101: 1552.44438 | AV101: =SUM(AU$29:$AU101) -> 153053.8191 | AW101: 0 | AX101: 40056135.97 | AY101: 0
AM102: 73 | AN102: 4.586725274 | AO102: 59738114.2 | AP102: -7487171.02 | AQ102: -59267061.33 | AS102: 2741.591211 | AT102: 4028785.263 | AU102: 1469.506193 | AV102: =SUM(AU$29:$AU102) -> 154523.3253 | AW102: 0 | AX102: 40056135.97 | AY102: 0
AM103: 74 | AN103: 4.649557127 | AO103: 58150130.76 | AP103: -3651276.921 | AQ103: -58035384.76 | AS103: 2807.292489 | AT103: 3909335.016 | AU103: 1392.564199 | AV103: =SUM(AU$29:$AU103) -> 155915.8895 | AW103: 0 | AX103: 40056135.97 | AY103: 0
AM104: 75 | AN104: 4.71238898 | AO104: 56638575.14 | AP104: -1.040859942e-08 | AQ104: -56638575.14 | AS104: 2871.74239 | AT104: 3794548.117 | AU104: 1321.340009 | AV104: =SUM(AU$29:$AU104) -> 157237.2295 | AW104: 0 | AX104: 40056135.97 | AY104: 0
AM105: 76 | AN105: 4.775220833 | AO105: 55203611.4 | AP105: 3466263.44 | AQ105: -55094679.69 | AS105: 2934.777265 | AT105: 3684718.406 | AU105: 1255.535965 | AV105: =SUM(AU$29:$AU105) -> 158492.7654 | AW105: 0 | AX105: 40056135.97 | AY105: 0
AM106: 77 | AN106: 4.838052687 | AO106: 53844812.69 | AP106: 6748544.486 | AQ106: -53420230.26 | AS106: 2996.245375 | AT106: 3580050.62 | AU106: 1194.845606 | AV106: =SUM(AU$29:$AU106) -> 159687.611 | AW106: 0 | AX106: 40056135.97 | AY106: 0
AM107: 78 | AN107: 4.90088454 | AO107: 52561285.01 | AP107: 9849002.682 | AQ107: -51630280.15 | AS107: 3056.005861 | AT107: 3480673.879 | AU107: 1138.961781 | AV107: =SUM(AU$29:$AU107) -> 160826.5728 | AW107: 0 | AX107: 40056135.97 | AY107: 0
AM108: 79 | AN108: 4.963716393 | AO108: 51351774.42 | AP108: 12770666.99 | AQ108: -49738464 | AS108: 3113.927844 | AT108: 3386654.3 | AU108: 1087.582779 | AV108: =SUM(AU$29:$AU108) -> 161914.1556 | AW108: 0 | AX108: 40056135.97 | AY108: 0
AM109: 80 | AN109: 5.026548246 | AO109: 50214758.94 | AP109: 15517213.88 | AQ109: -47757073.7 | AS109: 3169.889642 | AT109: 3298006.515 | AU109: 1040.416825 | AV109: =SUM(AU$29:$AU109) -> 162954.5724 | AW109: 0 | AX109: 40056135.97 | AY109: 0
AM110: 81 | AN110: 5.089380099 | AO110: 49148526.37 | AP110: 18092779.29 | AQ110: -45697144.14 | AS110: 3223.778089 | AT110: 3214703.975 | AU110: 997.1852548 | AV110: =SUM(AU$29:$AU110) -> 163951.7577 | AW110: 0 | AX110: 40056135.97 | AY110: 0
AM111: 82 | AN111: 5.152211952 | AO111: 48151239.68 | AP111: 20501800.72 | AQ111: -43568544.27 | AS111: 3275.487955 | AT111: 3136688.006 | AU111: 957.6246499 | AV111: =SUM(AU$29:$AU111) -> 164909.3823 | AW111: 0 | AX111: 40056135.97 | AY111: 0
AM112: 83 | AN112: 5.215043805 | AO112: 47220991.29 | AP112: 22748886.05 | AQ112: -41380070.11 | AS112: 3324.921432 | AT112: 3063875.663 | AU112: 921.4881391 | AV112: =SUM(AU$29:$AU112) -> 165830.8705 | AW112: 0 | AX112: 40056135.97 | AY112: 0
AM113: 84 | AN113: 5.277875658 | AO113: 46355847.88 | AP113: 24838705.4 | AQ113: -39139536.88 | AS113: 3371.987698 | AT113: 2996166.452 | AU113: 888.5460805 | AV113: =SUM(AU$29:$AU113) -> 166719.4165 | AW113: 0 | AX113: 40056135.97 | AY113: 0
AM114: 85 | AN114: 5.340707511 | AO114: 45553886.87 | AP114: 26775902.88 | AQ114: -36853868.63 | AS114: 3416.602541 | AT114: 2933448.031 | AU114: 858.5862697 | AV114: =SUM(AU$29:$AU114) -> 167578.0028 | AW114: 0 | AX114: 40056135.97 | AY114: 0
AM115: 86 | AN115: 5.403539364 | AO115: 44813225.97 | AP115: 28565025.29 | AQ115: -34529184.06 | AS115: 3458.688031 | AT115: 2875600.971 | AU115: 831.4138036 | AV115: =SUM(AU$29:$AU115) -> 168409.4166 | AW115: 0 | AX115: 40056135.97 | AY115: 0
AM116: 87 | AN116: 5.466371217 | AO116: 44132046.86 | AP116: 30210464.96 | AQ116: -32170877.62 | AS116: 3498.172239 | AT116: 2822502.728 | AU116: 806.8507022 | AV116: =SUM(AU$29:$AU116) -> 169216.2673 | AW116: 0 | AX116: 40056135.97 | AY116: 0
AM117: 88 | AN117: 5.52920307 | AO117: 43508613.86 | AP117: 31716414.52 | AQ117: -29783695.7 | AS117: 3534.989 | AT117: 2774030.895 | AU117: 784.7353685 | AV117: =SUM(AU$29:$AU117) -> 170001.0027 | AW117: 0 | AX117: 40056135.97 | AY117: 0
AM118: 89 | AN118: 5.592034923 | AO118: 42941288.62 | AP118: 33086831.54 | AQ118: -27371807.52 | AS118: 3569.077699 | AT118: 2730065.868 | AU118: 764.9219485 | AV118: =SUM(AU$29:$AU118) -> 170765.9246 | AW118: 0 | AX118: 40056135.97 | AY118: 0
AM119: 90 | AN119: 5.654866776 | AO119: 42428541.46 | AP119: 34325411.09 | AQ119: -24938870.95 | AS119: 3600.3831 | AT119: 2690492.989 | AU119: 747.2796406 | AV119: =SUM(AU$29:$AU119) -> 171513.2043 | AW119: 0 | AX119: 40056135.97 | AY119: 0
AM120: 91 | AN120: 5.71769863 | AO120: 41968959.98 | AP120: 35435564.91 | AQ120: -22488093.31 | AS120: 3628.85519 | AT120: 2655204.273 | AU120: 731.6919893 | AV120: =SUM(AU$29:$AU120) -> 172244.8963 | AW120: 0 | AX120: 40056135.97 | AY120: 0
AM121: 92 | AN121: 5.780530483 | AO121: 41561255.53 | AP121: 36420405.85 | AQ121: -20022287.55 | AS121: 3654.449051 | AT121: 2624099.776 | AU121: 718.0561939 | AV121: =SUM(AU$29:$AU121) -> 172962.9525 | AW121: 0 | AX121: 40056135.97 | AY121: 0
AM122: 93 | AN122: 5.843362336 | AO122: 41204267.96 | AP122: 37282736.32 | AQ122: -17543924.02 | AS122: 3677.124751 | AT122: 2597088.674 | AU122: 706.282449 | AV122: =SUM(AU$29:$AU122) -> 173669.2349 | AW122: 0 | AX122: 40056135.97 | AY122: 0
AM123: 94 | AN123: 5.906194189 | AO123: 40896969.02 | AP123: 38025040.14 | AQ123: -15055178.43 | AS123: 3696.847249 | AT123: 2574090.097 | AU123: 696.2933342 | AV123: =SUM(AU$29:$AU123) -> 174365.5282 | AW123: 0 | AX123: 40056135.97 | AY123: 0
AM124: 95 | AN124: 5.969026042 | AO124: 40638464.77 | AP124: 38649476.73 | AQ124: -12557976.24 | AS124: 3713.586319 | AT124: 2555033.779 | AU124: 688.0232635 | AV124: =SUM(AU$29:$AU124) -> 175053.5515 | AW124: 0 | AX124: 40056135.97 | AY124: 0
AM125: 96 | AN125: 6.031857895 | AO125: 40427997.12 | AP125: 39157877.25 | AQ125: -10054034.04 | AS125: 3727.316488 | AT125: 2539860.545 | AU125: =AT125/AS125 -> 681.4179997 | AV125: =SUM(AU$29:$AU125) -> 175734.9695 | AW125: 0 | AX125: 40056135.97 | AY125: 0
AM126: 97 | AN126: 6.094689748 | AO126: 40264944.95 | AP126: 39551742.08 | AQ126: -7544898.317 | AS126: 3738.016979 | AT126: 2528522.681 | AU126: =AT126/AS126 -> 676.4342417 | AV126: =SUM(AU$29:$AU126) -> 176411.4038 | AW126: 0 | AX126: 40056135.97 | AY126: 0
AM127: 98 | AN127: 6.157521601 | AO127: 40148824.73 | AP127: 39832239.26 | AQ127: -5031982.028 | AS127: 3745.671673 | AT127: 2520984.189 | AU127: =AT127/AS127 -> 673.0392861 | AV127: =SUM(AU$29:$AU127) -> 177084.443 | AW127: 0 | AX127: 40056135.97 | AY127: 0
AM128: 99 | AN128: 6.220353454 | AO128: 40079290.88 | AP128: 40000203.55 | AQ128: -2516599.496 | AS128: 3750.269081 | AT128: 2517220.98 | AU128: =AT128/AS128 -> 671.2107653 | AV128: =SUM(AU$29:$AU128) -> 177755.6538 | AW128: 0 | AX128: 40056135.97 | AY128: 0
AM129: 100 | AN129: 6.283185307 | AO129: 40056135.97 | AP129: 40056135.97 | AQ129: 2.576205293e-08 | AS129: 3751.802314 | AT129: 40056135.97 | AU129: =AT129/AS129 -> 10676.50495 | AV129: =SUM(AU$29:$AU129) -> 188432.1588 | AW129: 0 | AX129: 40056135.97 | AY129: 0

Sheet Theorie (hidden)
B2: De horizontale worp zonder luchtweerstand
B4: 1. | C4: Theorie:
B5: Bij een horizontale worp voert een voorwerp twee bewegingen tegelijk uit: | AA5: vx = | AB5: =C15 -> 4
B6: - | C6: Een eenparige beweging in de horizontale richting: | AA6: g = | AB6: 9.81
C7: x(t) = vx . t | AA7: t | AB7: x(t) | AC7: y(t)
C8: vx is de constante snelheid in de x-richting | AA8: 0 | AB8: =$AB$5*AA8 -> 0 | AC8: =0.5*$AB$6*AA8^2 -> 0 | AD8: =-AC8 -> 0
B9: - | C9: Een eenparig versnelde beweging in de verticale richting: | AA9: 0.1 | AB9: 0.4 | AC9: 0.04905 | AD9: =-AC9 -> -0.04905
C10: y(t) = 1/2gt2 | AA10: 0.2 | AB10: 0.8 | AC10: 0.1962 | AD10: -0.1962
C11: g is de valversnelling (9,81 ms-2) | AA11: 0.3 | AB11: 1.2 | AC11: 0.44145 | AD11: -0.44145
AA12: 0.4 | AB12: 1.6 | AC12: 0.7848 | AD12: -0.7848
B13: 2 | C13: Voorbeeld: | AA13: 0.5 | AB13: 2 | AC13: 1.22625 | AD13: -1.22625
C14: Je gooit een bal weg vanaf 5,0 m hoogte met een horizontale snelheid van | AA14: 0.6 | AB14: 2.4 | AC14: 1.7658 | AD14: -1.7658
C15: 4 | D15: m/s | AA15: 0.7 | AB15: 2.8 | AC15: 2.40345 | AD15: =-AC15 -> -2.40345
C16: Waar komt de bal op de grond? | AA16: 0.8 | AB16: 3.2 | AC16: 3.1392 | AD16: =-AC16 -> -3.1392
B17: - | C17: Als de bal op de grond komt is y(t) = 5,0 | AA17: 0.9 | AB17: 3.6 | AC17: 3.97305 | AD17: =-AC17 -> -3.97305
C18: y(t) = 1/2gt2 | AA18: 1 | AB18: 4 | AC18: 4.905 | AD18: =-AC18 -> -4.905
C19: 5,0 = 1/2.9,81.t2
C20: t = 1,00 s
B21: - | C21: Hoe ver is de bal dan gegaan in horizontale richting:
C22: x(t) = vx . t
C23: x(t) = | D23: =C15 -> 4 | E23: . 1,00 = | F23: =D23*1 -> 4 | G23: m
C25: Hieronder zie je de x(t) - t grafiek en de y(t) - grafiek
C44: De baan van de bal is hier onder getekend.
C45: Een hokje in de tekening is 0,5 m
B64: 3. | C64: Controleer met de schuifbalk dat vx geen invloed heeft op de valtijd en dus ook niet op de y(t) - t grafiek!!!!!!!!!
